{"text_format":"1","workbook":"xlsx","n_sheets":12,"sheets":["初期設定・企業識別子追加","記入例_初期設定・企業識別子追加","(カード型)マルチキャリア料金表","(チップ型)マルチキャリア料金表","ご利用までの流れ","AtMOSInput(ReadOnly)","AtMOSInputUnitPrice(ReadOnly)","リスト","重要事項説明書","パラメーターシート","通信機器売買契約条項","Validation"],"not_rendered":{"charts":0,"images":13,"macros":1,"external_links":4,"defined_names":11,"comments":1,"pivot_tables":0},"unopened":[],"bounds":{"document_bytes":16777216,"sheet_cells":100000,"rows_first":2000,"rows_last":500,"rows_between":2000,"halvings":0,"cell_chars":16384,"cell_head_chars":4096},"cells_cut":0,"cells_raw":0,"read":"whole","date_system":"1900"}

{"sheet":"初期設定・企業識別子追加","index":0,"n_rows":85,"n_cols":41,"rows_kept":85,"cut":false,"hidden":false,"merged":[[38,25,38,28],[38,30,38,35],[32,10,32,23],[32,25,32,38],[35,21,35,22],[35,17,35,18],[35,23,35,24],[35,25,35,26],[33,10,34,44],[35,15,35,16],[1,1,1,44],[2,1,2,44],[3,1,3,44],[4,1,4,44],[5,1,5,44],[6,2,6,23],[7,2,7,23],[8,2,8,23],[9,41,9,42],[9,43,9,44],[9,35,9,36],[9,32,9,34],[9,1,9,8],[9,9,9,11],[9,12,9,13],[9,39,9,40],[9,37,9,38],[15,9,15,44],[9,14,9,15],[9,18,9,19],[9,22,9,23],[50,17,50,21],[22,9,27,9],[17,11,17,18],[9,27,9,31],[11,11,11,15],[11,17,11,21],[12,9,12,30],[13,11,13,24],[13,26,13,30],[14,9,14,44],[45,10,45,19],[35,19,35,20],[65,22,65,24],[65,25,65,27],[48,1,52,8],[53,1,71,8],[67,20,67,35],[56,15,56,22],[56,24,56,36],[64,10,64,44],[82,1,82,8],[79,1,79,8],[81,1,81,8],[40,1,47,8],[18,9,18,44],[26,10,26,25],[26,27,26,43],[29,10,29,30],[23,10,23,30],[20,10,20,30],[30,10,30,44],[70,14,70,21],[50,11,50,15],[81,9,81,20],[60,15,60,22],[80,1,80,8],[84,1,84,8],[84,9,84,20],[84,21,84,44],[83,1,83,8],[83,9,83,20],[80,9,80,20],[67,14,67,19],[79,9,79,20],[73,9,73,15],[72,9,72,15],[72,16,72,20],[74,9,74,44],[78,1,78,23],[78,24,78,44],[73,16,73,44]]}
[]
[null,"InfoSphereモバイルマルチキャリアタイプ 申込書 ver1.9"]
[]
[null,"初期設定シート／企業識別子追加シート"]
[]
[]
[null,null,"株式会社NTT PC コミュニケーションズ　御中"]
[null,null,"InfoSphereモバイル利用規約を承諾の上、下記の通り申し込みます。"]
[null,null,"＜太枠の中をご記入願います。また該当する個所の□を塗りつぶして下さい。＞"]
[null,null,null,null,null,null,null,null,null,"お申込日",null,null,20,null,null,null,"年",null,null,null,"月",null,null,null,"日",null,null,"システム番号",null,null,null,null,"選択式"]
[null,null,null,null,null,null,null,null,null,"申込区分"]
[null,null,null,null,null,null,null,null,null,null,"□","新規申し込み",null,null,null,null,"□","企業識別子追加"]
[null,null,null,null,null,null,null,null,null,"カスタマコンソールご利用有無(InfoSphereモバイルスタンダードタイプ含む)"]
[null,null,null,null,null,null,null,null,null,null,"□","利用中",null,null,null,null,null,null,null,null,null,null,null,null,null,"□","未利用"]
[null,null,null,null,null,null,null,null,null,"カスタマーコンソール開通済みのシステム番号で「未利用」を選択してお申込みすると開通できませんのでご注意ください。また、後から複数のカスタマコンソールを1つ統合することはできません。"]
[null,null,null,null,null,null,null,null,null,"既にご利用している方は「利用中」を、初めてお申込みする場合は「未利用」を選択してください。"]
[null,null,null,null,null,null,null,null,null,"IDタイプ"]
[null,null,null,null,null,null,null,null,null,null,"□","共通ID/固定パスワード",null,null,null,null,null,null,null,"□","ユニークID/固定パスワード",null,null,null,null,null,null,null,null,null,null,"□","共通ID/固定パスワード（チップSIM）"]
[null,null,null,null,null,null,null,null,null,"共通IDとは全てのSIMに同じID・パスワードを使って認証する方式です。ユニークIDとはSIM1枚1枚に異なるID・パスワードを使って認証する方式です。"]
[null,null,null,null,null,null,null,null,null,"会社名"]
[]
[]
[null,null,null,null,null,null,null,null,null,"システム管理者情報","担当者名"]
[]
[]
[null,null,null,null,null,null,null,null,null,null,"電話番号",null,null,null,null,null,null,null,null,null,null,null,null,null,null,null,null,"メールアドレス"]
[]
[]
[null,null,null,null,null,null,null,null,null,"システム名"]
[]
[null,null,null,null,null,null,null,null,null,null,"お客様のネットワークを表す名称です。システム番号を発行する際に指定したシステム名をご記入ください。(全角のみ)"]
[null,null,null,null,null,null,null,null,null,"企業識別子"]
[null,null,null,null,null,null,null,null,null,null,null,null,null,null,null,null,null,null,null,null,null,null,null,null,null,"ご指定の企業識別子の場合、ユーザIDに使える文字数は",null,null,null,null,null,null,null,null,null,null,null,null,null,{"$f":"16-VALUE(LEN(K33))","v":16},"文字です"]
[null,null,null,null,null,null,null,null,null,null,"※文字数は2～13文字の範囲でご記入ください。\n※利用可能な文字は「半角の英数字（大文字・小文字の区別あり）」、「-(ハイフン)」、「_(アンダースコア)」です。ただし数字のみ又は記号のみの指定はできません。\n※ご指定の企業識別子が他のお客様と重複する場合は、他の識別子への変更をお願いさせていただくことがあります。\n※ユーザIDは3～14 文字の範囲でカスタマコンソールより指定できます。"]
[]
[null,null,null,null,null,null,null,null,null,"設定完了希望日",null,null,null,null,20,null,null,"年",null,null,null,"月",null,null,null,"日",null,"SIMおよび端末のお申込みは設定完了希望日以降に行えます。"]
[null,null,null,null,null,null,null,null,null,null,"　新規申し込み／企業識別子追加とも7営業日以降での指定をお願いします。"]
[null,null,null,null,null,null,null,null,null,"設定完了通知先",null,null,null,null,null,"□","通知しない",null,null,null,null,"□","通知する（システム管理者と同じ）"]
[null,null,null,null,null,null,null,null,null,null,null,null,null,null,null,null,null,null,null,null,null,"□","通知する（",null,null,null,null,null,null,"＠",null,null,null,null,null,null,"）","通知先メールアドレスを記載してください。"]
[null,null,null,null,null,null,null,null,null,null,"設定が完了したときにご指定のメールアドレスに設定完了通知メールを送付します。"]
[null,null,null,null,null,null,null,null,null,"基本設定"]
[null,null,null,null,null,null,null,null,null,"端末IPアドレス帯"]
[null,null,null,null,null,null,null,null,null,null,"□","標準サービス（プライベートIP固定）",null,null,null,null,null,null,null,null,null,null,null,"□","グローバルアドレス（有償オプション）"]
[null,null,null,null,null,null,null,null,null,null,"グローバルアドレスは数に限りがあるためご要望に沿えない場合があります。"]
[null,null,null,null,null,null,null,null,null,"ご利用端末数"]
[]
[null,null,null,null,null,null,null,null,null,null,"3か月以内にご利用される予定の端末数（SIM枚数）をお選びください。端末のご利用状況が予定端末数を大幅に下回る場合は端末アドレスを削減する場合があります。"]
[null,null,null,null,null,null,null,null,null,null,"ご利用端末数を超える場合は本申込書で端末アドレス追加を申請することで端末（SIM）を追加できます。"]
[null,null,null,null,null,null,null,null,null,"オプションサービス"]
[null,null,null,null,null,null,null,null,null,"SIM管理API"]
[null,null,null,null,null,null,null,null,null,null,"□","利用する",null,null,null,null,"□","利用しない"]
[null,null,null,null,null,null,null,null,null,null,"システム番号毎の設定です。"]
[null,null,null,null,null,null,null,null,null,null,"同一システム番号の中で発行する全てのモバイルM2Mサービス（SIM）が対象となります。"]
[null,null,null,null,null,null,null,null,null,"管理者設定"]
[null,null,null,null,null,null,null,null,null,"カスタマーコンソール利用管理者"]
[null,null,null,null,null,null,null,null,null,null,"カスタマコンソール機能をご利用する方のID（メールアドレス）とパスワードをご記入ください。"]
[null,null,null,null,null,null,null,null,null,null,null,null,null,null,"ID(メールアドレス)",null,null,null,null,null,null,null,null,"@"]
[null,null,null,null,null,null,null,null,null,null,"・利用可能な文字種別は全て半角文字で、「a～z、A～Z」、「0～9」、「-(ハイフン)」、「_(アンダースコア)」、「.（ピリオド）」です。記号のみの登録はできません。"]
[null,null,null,null,null,null,null,null,null,null,"・ID(メールアドレス)は8文字以上、100文字以内でご記入ください。(@以降を含む)"]
[]
[null,null,null,null,null,null,null,null,null,null,null,null,null,null,"パスワード"]
[null,null,null,null,null,null,null,null,null,null,"・利用可能な文字種別は全て半角文字で、「a～z、A～Z」、「0～9」、および下記記号です。ただし、記号のみの登録はできません。"]
[null,null,null,null,null,null,null,null,null,null,"! （感嘆符） # （番号記号） $ （ドル記号） ( （左小かっこ） ) （右小かっこ） - （ハイフン） . （ピリオド） / （斜線） : （コロン） = （等号） @ （単価記号）"]
[null,null,null,null,null,null,null,null,null,null,"[ （左大かっこ） ] （右大かっこ） ^ （アクサンシルコンフレックス） _ （アンダーライン） ` （アクサングラーブ） { （左中かっこ） } （右中かっこ） ~ （チルダ）"]
[null,null,null,null,null,null,null,null,null,null,"・パスワードは8文字以上50文字以内でご記入ください。\n\n設定完了希望日以降、以下URLよりカスタマーコンソールへのログインが可能となります。\nhttps://mobile.customer.jp/#/login"]
[null,null,null,null,null,null,null,null,null,"API認証ID"]
[null,null,null,null,null,null,null,null,null,null,"SIM管理APIをご利用するときのIDとパスワードをご記入ください。"]
[null,null,null,null,null,null,null,null,null,null,null,"ユーザID",null,null,null,null,null,null,null,null,{"$f":"\"@\"&'AtMOSInput(ReadOnly)'!B8&\".ap.\"&'AtMOSInput(ReadOnly)'!B10","v":"@.ap.sphere.jp"}]
[null,null,null,null,null,null,null,null,null,null,"・利用可能な文字種別は、「半角の英数字（大文字・小文字の区別あり）」、「-(ハイフン)」、「_(アンダースコア)」です。但し、記号のみの登録はできません。"]
[null,null,null,null,null,null,null,null,null,null,"・ユーザIDは3～14文字以内でご記入ください。ただし、「ユーザID」と「企業識別子」の合計文字数が16文字以内でなければなりません。"]
[null,null,null,null,null,null,null,null,null,null,null,"パスワード"]
[null,null,null,null,null,null,null,null,null,null,"・パスワードの長さは半角3～15文字以内です。英字（大文字・小文字の区別あり）、数字、「-(ハイフン),_(アンダースコア)」のご利用が可能です。"]
[null,null,null,null,null,null,null,null,null,"宅配業者の指定",null,null,null,null,null,null,"なし",null,null,null,null,null,"※宅配業者の指定がある場合には下記に記載ください。"]
[null,null,null,null,null,null,null,null,null,"宅配業者名"]
[null,null,null,null,null,null,null,null,null,"海外利用時における規制について以下をご承諾ください。 ※海外での利用が可能なSIMのため必須"]
[null,null,null,null,null,null,null,null,null,"□","本製品はリスト規制に該当する製品のため海外で利用する場合経済産業省の定める輸出規制に準拠した輸出許可が必要となります。"]
[null,null,null,null,null,null,null,null,null,"□","海外で利用する場合、利用用途がキャッチオール規制に該当しないことを確認します。"]
[null,null,null,null,null,null,null,null,null,"□","海外で利用する場合、利用者がキャッチオール規制に該当しないことを確認します。"]
[null,"NTTPC記入欄（以降はサービスオーダまでに販売担当者が記入してください）",null,null,null,null,null,null,null,null,null,null,null,null,null,null,null,null,null,null,null,null,null,null,"※半角の < (小なり)、> (大なり)、”(ダブルクォーテーション)、’(シングルクォーテーション)、% (パーセント)、; (セミコロン)、& (アンパサント)、\n  + (プラス)、\\ (円)、* (アスタリスク)、? (クエスチョンマーク)、| (パイプライン)、, (カンマ)、および改行コードは使用できません。"]
[null,"契約期間",null,null,null,null,null,null,null,0,null,null,null,null,null,null,null,null,null,null,null,"ヶ月","（初期設定時記入必須）"]
[null,"OEM・卸識別番号",null,null,null,null,null,null,null,null,null,null,null,null,null,null,null,null,null,null,null,"半角16文字以内（プロダクト部門より払い出し）"]
[null,"見積番号/契約番号",null,null,null,null,null,null,null,null,null,null,null,null,null,null,null,null,null,null,null,"記入必須（見積番号/契約番号に使用できる文字種は半角英数字、半角記号【@.-_#:】です。）"]
[null,"料金表確認",null,null,null,null,null,null,null,null,null,null,null,"□","確認しました",null,null,null,null,null,null,"記入必須"]
[null,"設定完了メール通知先",null,null,null,null,null,null,null,null,null,null,null,null,null,null,null,null,null,null,null,"設定完了時にメール通知を受けたい場合にメールアドレスを記入してください。(任意)"]
[null,"請求先管理番号",null,null,null,null,null,null,null,null,null,null,null,null,null,null,null,null,null,null,null,"既存請求書に合算する場合は請求先管理番号を記入してください。新規の場合は請求書管理番号を払い出して記入してください。"]

{"sheet":"記入例_初期設定・企業識別子追加","index":1,"n_rows":85,"n_cols":44,"rows_kept":85,"cut":false,"hidden":false,"merged":[[84,21,84,44],[82,1,82,8],[83,1,83,8],[83,9,83,20],[84,1,84,8],[84,9,84,20],[72,16,72,20],[73,9,73,15],[73,16,73,44],[81,1,81,8],[81,9,81,20],[80,1,80,8],[80,9,80,20],[72,9,72,15],[79,1,79,8],[79,9,79,20],[74,9,74,44],[78,1,78,23],[78,24,78,44],[40,1,47,8],[45,10,45,19],[48,1,52,8],[50,11,50,15],[50,17,50,21],[30,10,30,44],[32,10,32,23],[32,25,32,38],[33,10,34,44],[38,30,38,35],[35,25,35,26],[38,25,38,28],[35,15,35,16],[35,17,35,18],[35,19,35,20],[35,21,35,22],[35,23,35,24],[22,9,27,9],[23,10,23,30],[26,10,26,25],[26,27,26,43],[29,10,29,30],[14,9,14,44],[15,9,15,44],[17,11,17,18],[18,9,18,44],[20,10,20,30],[53,1,71,8],[56,15,56,22],[56,24,56,36],[60,15,60,22],[64,10,64,44],[70,14,70,21],[65,22,65,24],[65,25,65,27],[67,14,67,19],[67,20,67,35],[9,43,9,44],[11,11,11,15],[11,17,11,21],[9,39,9,40],[9,41,9,42],[9,27,9,31],[9,32,9,34],[9,35,9,36],[9,37,9,38],[12,9,12,30],[13,11,13,24],[7,2,7,23],[8,2,8,23],[9,9,9,11],[9,12,9,13],[9,14,9,15],[9,18,9,19],[9,22,9,23],[9,1,9,8],[13,26,13,30],[6,2,6,23],[1,1,1,44],[2,1,2,44],[3,1,3,44],[4,1,4,44],[5,1,5,44]]}
[]
[null,"InfoSphereモバイルマルチキャリアタイプ 申込書"]
[]
[null,"初期設定シート／企業識別子追加シート"]
[]
[]
[null,null,"株式会社NTT PC コミュニケーションズ　御中"]
[null,null,"InfoSphereモバイルスタンダードタイプ利用規約を承諾の上、下記の通り申し込みます。"]
[null,null,"＜太枠の中をご記入願います。また該当する個所の□を塗りつぶして下さい。＞"]
[null,"記入してください",null,null,null,null,null,null,null,"お申込日",null,null,20,null,null,null,"年",null,1,null,"月",null,1,null,"日",null,null,"システム番号",null,null,null,null,"one",null,null,0,null,1,null,2,null,3,null,4]
[null,null,null,null,null,null,null,null,null,"申込区分"]
[null,null,null,null,null,null,null,null,null,null,"■","新規申し込み",null,null,null,null,"□","企業識別子追加"]
[null,null,null,null,null,null,null,null,null,"カスタマコンソールご利用有無(InfoSphereモバイルスタンダードタイプ含む)"]
[null,null,null,null,null,null,null,null,null,null,"□","利用中",null,null,null,null,null,null,null,null,null,null,null,null,null,"■","未利用"]
[null,null,null,null,null,null,null,null,null,"カスタマーコンソール開通済みのシステム番号で「未利用」を選択してお申込みすると開通できませんのでご注意ください。また、後から複数のカスタマコンソールを1つ統合することはできません。"]
[null,null,null,null,null,null,null,null,null,"既にご利用している方は「利用中」を、初めてお申込みする場合は「未利用」を選択してください。"]
[null,null,null,null,null,null,null,null,null,"IDタイプ"]
[null,null,null,null,null,null,null,null,null,null,"■","共通ID/固定パスワード",null,null,null,null,null,null,null,"□","ユニークID/固定パスワード"]
[null,null,null,null,null,null,null,null,null,"共通IDとは全てのSIMに同じID・パスワードを使って認証する方式です。ユニークIDとはSIM1枚1枚に異なるID・パスワードを使って認証する方式です。"]
[null,null,null,null,null,null,null,null,null,"会社名"]
[null,null,null,null,null,null,null,null,null,null,"株式会社エヌ・ティ・ティピー・シーコミュニケーションズ"]
[]
[null,null,null,null,null,null,null,null,null,"システム管理者情報","担当者名"]
[null,null,null,null,null,null,null,null,null,null,"PC次郎"]
[]
[null,null,null,null,null,null,null,null,null,null,"電話番号",null,null,null,null,null,null,null,null,null,null,null,null,null,null,null,null,"メールアドレス"]
[null,null,null,null,null,null,null,null,null,null,"00-0000-0000",null,null,null,null,null,null,null,null,null,null,null,null,null,null,null,null,"pctaro@nttpc.co.jp"]
[]
[null,null,null,null,null,null,null,null,null,"システム名"]
[null,null,null,null,null,null,null,null,null,null," Ｍ２ＭＩ＿ＮＴＴＰＣ＿Ｍ２Ｍネットワーク"]
[null,null,null,null,null,null,null,null,null,null,"お客様のネットワークを表す名称です。システム番号を発行する際に指定したシステム名をご記入ください。(全角のみ)"]
[null,null,null,null,null,null,null,null,null,"企業識別子"]
[null,null,null,null,null,null,null,null,null,null,"int-m2m",null,null,null,null,null,null,null,null,null,null,null,null,null,null,"ご指定の企業識別子の場合、ユーザIDに使える文字数は",null,null,null,null,null,null,null,null,null,null,null,null,null,{"$f":"16-VALUE(LEN(K33))","v":9},"文字です"]
[null,null,null,null,null,null,null,null,null,null,"※文字数は2～13文字の範囲でご記入ください。\n※利用可能な文字は「半角の英数字（大文字・小文字の区別あり）」、「-(ハイフン)」、「_(アンダースコア)」です。ただし数字のみ又は記号のみの指定はできません。\n※ご指定の企業識別子が他のお客様と重複する場合は、他の識別子への変更をお願いさせていただくことがあります。\n※ユーザIDは3～14 文字の範囲でカスタマコンソールより指定できます。"]
[]
[null,null,null,null,null,null,null,null,null,"設定完了希望日",null,null,null,null,20,21,null,"年",null,1,null,"月",null,31,null,"日",null,"SIMおよび端末のお申込みは設定完了希望日以降に行えます。"]
[null,null,null,null,null,null,null,null,null,null,"　新規申し込み／企業識別子追加とも5営業日以降での指定をお願いします。"]
[null,null,null,null,null,null,null,null,null,"設定完了通知先",null,null,null,null,null,"□","通知しない",null,null,null,null,"■","通知する（システム管理者と同じ）"]
[null,null,null,null,null,null,null,null,null,null,null,null,null,null,null,null,null,null,null,null,null,"□","通知する（",null,null,null,null,null,null,"＠",null,null,null,null,null,null,"）","通知先メールアドレスを記載してください。"]
[null,null,null,null,null,null,null,null,null,null,"設定が完了したときにご指定のメールアドレスに設定完了通知メールを送付します。"]
[null,null,null,null,null,null,null,null,null,"基本設定"]
[null,null,null,null,null,null,null,null,null,"端末IPアドレス帯"]
[null,null,null,null,null,null,null,null,null,null,"■","標準サービス（プライベートIP固定）",null,null,null,null,null,null,null,null,null,null,null,"□","グローバルアドレス（有償オプション）"]
[null,null,null,null,null,null,null,null,null,null,"グローバルアドレスは数に限りがあるためご要望に沿えない場合があります。"]
[null,null,null,null,null,null,null,null,null,"ご利用端末数"]
[null,null,null,null,null,null,null,null,null,null,"29台(/27)"]
[null,null,null,null,null,null,null,null,null,null,"3か月以内にご利用される予定の端末数（SIM枚数）をお選びください。端末のご利用状況が予定端末数を大幅に下回る場合は端末アドレスを削減する場合があります。"]
[null,null,null,null,null,null,null,null,null,null,"ご利用端末数を超える場合は本申込書で端末アドレス追加を申請することで端末（SIM）を追加できます。"]
[null,null,null,null,null,null,null,null,null,"オプションサービス"]
[null,null,null,null,null,null,null,null,null,"SIM管理API"]
[null,null,null,null,null,null,null,null,null,null,"□","利用する",null,null,null,null,"□","利用しない"]
[null,null,null,null,null,null,null,null,null,null,"システム番号毎の設定です。"]
[null,null,null,null,null,null,null,null,null,null,"同一システム番号の中で発行する全てのモバイルM2Mサービス（SIM）が対象となります。"]
[null,null,null,null,null,null,null,null,null,"管理者設定"]
[null,null,null,null,null,null,null,null,null,"カスタマーコンソール利用管理者"]
[null,null,null,null,null,null,null,null,null,null,"カスタマコンソール機能をご利用する方のID（メールアドレス）とパスワードをご記入ください。"]
[null,null,null,null,null,null,null,null,null,null,null,null,null,null,"ID(メールアドレス)","pctaro",null,null,null,null,null,null,null,"@","nttpc.co.jp"]
[null,null,null,null,null,null,null,null,null,null,"・利用可能な文字種別は全て半角文字で、「a～z、A～Z」、「0～9」、「-(ハイフン)」、「_(アンダースコア)」、「.（ピリオド）」です。記号のみの登録はできません。"]
[null,null,null,null,null,null,null,null,null,null,"・ID(メールアドレス)は8文字以上、100文字以内でご記入ください。(@以降を含む)"]
[]
[null,null,null,null,null,null,null,null,null,null,null,null,null,null,"パスワード","K6Y2TQ6B"]
[null,null,null,null,null,null,null,null,null,null,"・利用可能な文字種別は全て半角文字で、「a～z、A～Z」、「0～9」、および下記記号です。ただし、記号のみの登録はできません。"]
[null,null,null,null,null,null,null,null,null,null,"! （感嘆符） # （番号記号） $ （ドル記号）　( （左小かっこ）) （右小かっこ） , （コンマ）- （ハイフン） . （ピリオド） / （斜線） : （コロン） = (等号)"]
[null,null,null,null,null,null,null,null,null,null,"@ （単価記号） [ （左大かっこ） ] （右大かっこ） ^ （アクサンシルコンフレックス） _ （アンダーライン） ` （アクサングラーブ） { （左中かっこ） } （右中かっこ） ~ （チルダ）"]
[null,null,null,null,null,null,null,null,null,null,"・パスワードは8文字以上50文字以内でご記入ください。\n\n設定完了希望日以降、以下URLよりカスタマーコンソールへのログインが可能となります。\nhttps://mobile.customer.jp/#/login"]
[null,null,null,null,null,null,null,null,null,"API認証ID"]
[null,null,null,null,null,null,null,null,null,null,"SIM管理APIをご利用するときのIDとパスワードをご記入ください。"]
[null,null,null,null,null,null,null,null,null,null,null,"ユーザID",null,null,null,null,null,null,null,null,{"$f":"\"@\"&'AtMOSInput(ReadOnly)'!B8&\".ap.\"&'AtMOSInput(ReadOnly)'!B10","v":"@.ap.sphere.jp"}]
[null,null,null,null,null,null,null,null,null,null,"・利用可能な文字種別は、「半角の英数字（大文字・小文字の区別あり）」、「-(ハイフン)」、「_(アンダースコア)」です。但し、記号のみの登録はできません。"]
[null,null,null,null,null,null,null,null,null,null,"・ユーザIDは3～14文字以内でご記入ください。ただし、「ユーザID」と「企業識別子」の合計文字数が16文字以内でなければなりません。"]
[null,null,null,null,null,null,null,null,null,null,null,"パスワード"]
[null,null,null,null,null,null,null,null,null,null,"・パスワードの長さは半角3～15文字以内です。英字（大文字・小文字の区別あり）、数字、「-(ハイフン),_(アンダースコア)」のご利用が可能です。"]
[null,null,null,null,null,null,null,null,null,"宅配業者の指定",null,null,null,null,null,null,"なし",null,null,null,null,null,"※宅配業者の指定がある場合には下記に記載ください。"]
[null,null,null,null,null,null,null,null,null,"宅配業者名"]
[null,null,null,null,null,null,null,null,null,"海外利用時における規制について以下をご承諾ください。 ※海外での利用が可能なSIMのため必須"]
[null,null,null,null,null,null,null,null,null,"□","本製品はリスト規制に該当する製品のため海外で利用する場合経済産業省の定める輸出規制に準拠した輸出許可が必要となります。"]
[null,null,null,null,null,null,null,null,null,"□","海外で利用する場合、利用用途がキャッチオール規制に該当しないことを確認します。"]
[null,null,null,null,null,null,null,null,null,"□","海外で利用する場合、利用者がキャッチオール規制に該当しないことを確認します。"]
[null,"NTTPC記入欄（以降はサービスオーダまでに販売担当者が記入してください）",null,null,null,null,null,null,null,null,null,null,null,null,null,null,null,null,null,null,null,null,null,null,"※半角の < (小なり)、> (大なり)、”(ダブルクォーテーション)、’(シングルクォーテーション)、% (パーセント)、; (セミコロン)、& (アンパサント)、\n  + (プラス)、\\ (円)、* (アスタリスク)、? (クエスチョンマーク)、| (パイプライン)、, (カンマ)、および改行コードは使用できません。"]
[null,"契約期間",null,null,null,null,null,null,null,0,null,null,null,null,null,null,null,null,null,null,null,"ヶ月（初期設定時記入必須）"]
[null,"OEM・卸識別番号",null,null,null,null,null,null,null,null,null,null,null,null,null,null,null,null,null,null,null,"半角16文字以内（プロダクト部門より払い出し）"]
[null,"見積番号/契約番号",null,null,null,null,null,null,null,null,null,null,null,null,null,null,null,null,null,null,null,"記入必須（見積番号/契約番号に使用できる文字種は半角英数字、半角記号【@.-_#:】です。）"]
[null,"料金表確認",null,null,null,null,null,null,null,null,null,null,null,"□","確認しました",null,null,null,null,null,null,"記入必須"]
[null,"設定完了メール通知先",null,null,null,null,null,null,null,null,null,null,null,null,null,null,null,null,null,null,null,"設定完了時にメール通知を受けたい場合にメールアドレスを記入してください。(任意)"]
[null,"請求先管理番号",null,null,null,null,null,null,null,null,null,null,null,null,null,null,null,null,null,null,null,"既存請求書に合算する場合は請求先IDを記入してください。空欄の場合は新規請求書になります。"]

{"sheet":"(カード型)マルチキャリア料金表","index":2,"n_rows":34,"n_cols":4,"rows_kept":34,"cut":false,"hidden":false,"merged":[]}
["料金表"]
[]
["InfoSphereモバイルマルチキャリアタイプのお申込みにあたり、弊社が提供する"]
["カスタマーコンソールから発注されたSIMおよび端末は下記に規定する提供料金が適用されます。"]
["下記に規定する料金に記載のない項目については、利用規約および当該見積書/契約書等が適用されます。"]
[]
[]
["InfoSphereモバイル利用規約：https://www.nttpc.co.jp/support/term/infosphere.html"]
[]
["下記料金表は消費税及び地方消費税相当額を含まない金額を表示します。"]
[]
["■InfoSphereモバイル　マルチキャリアタイプ基本サービス初期料金"]
["項目","金額(税抜)","金額(税込)","対象"]
["事務手数料",1980,{"$f":"B14*1.1","v":2178},"1回線毎"]
["SIM発行手数料",394,{"$f":"B15*1.1","v":433.40000000000003},"1回線毎"]
["配送料",990,1089,"1申し込み毎"]
[]
["■InfoSphereモバイルマルチキャリアタイプ基本サービス月額料金（1回線毎)"]
["プラン","金額(税抜)","金額(税込)","対応回線"]
["従量プラン",180,{"$f":"B20*1.1","v":198.00000000000003},"国際ローミング"]
[]
["■InfoSphereモバイルマルチキャリアタイプ通信料金（1利用回線毎)"]
["グループ","金額(税抜)","金額(税込)/海外は非課税","単位"]
["国内グループ",5,{"$f":"B24*1.1","v":5.5},"1MBあたり"]
["海外グループ1",5,{"$f":"B25","v":5},"1MBあたり"]
["海外グループ2",8,{"$f":"B26","v":8},"1MBあたり"]
["海外グループ3",10,10,"1MBあたり"]
["海外グループ4",13,13,"1MBあたり"]
["海外グループ5",20,20,"1MBあたり"]
["海外グループ6",38,38,"1MBあたり"]
[]
["■InfoSphereモバイルマルチキャリアタイプオプション料金"]
[null,"金額(税抜)","金額(税込)","対象"]
["グローバルIPアドレス",500,{"$f":"B34*1.1","v":550},"1回線毎"]

{"sheet":"(チップ型)マルチキャリア料金表","index":3,"n_rows":35,"n_cols":4,"rows_kept":35,"cut":false,"hidden":true,"merged":[]}
["料金表"]
[]
["InfoSphereモバイルマルチキャリアタイプのお申込みにあたり、弊社が提供する"]
["カスタマーコンソールから発注されたSIMおよび端末は下記に規定する提供料金が適用されます。"]
["下記に規定する料金に記載のない項目については、利用規約および当該見積書/契約書等が適用されます。"]
[]
[]
["InfoSphereモバイル利用規約：https://www.nttpc.co.jp/support/term/infosphere.html"]
[]
["下記料金表は消費税及び地方消費税相当額を含まない金額を表示します。"]
[]
["■InfoSphereモバイル　マルチキャリアタイプ基本サービス初期料金"]
["項目","金額(税抜)","金額(税込)","対象"]
["事務手数料",1980,{"$f":"B14*1.1","v":2178},"1回線毎"]
["SIM発行手数料",394,{"$f":"B15*1.1","v":433.40000000000003},"1回線毎"]
["配送料",990,1089,"1申し込み毎"]
["初期料金はチップSIM納品時に請求いたします。"]
[]
["■InfoSphereモバイルマルチキャリアタイプ基本サービス月額料金（1回線毎)"]
["プラン","金額(税抜)","金額(税込)","対応回線"]
["従量プラン",180,{"$f":"B21*1.1","v":198.00000000000003},"国際ローミング"]
[]
["■InfoSphereモバイルマルチキャリアタイプ通信料金（1利用回線毎)"]
["グループ","金額(税抜)","金額(税込)/海外は非課税","単位"]
["国内グループ",5,{"$f":"B25*1.1","v":5.5},"1MBあたり"]
["海外グループ1",5,{"$f":"B26","v":5},"1MBあたり"]
["海外グループ2",8,{"$f":"B27","v":8},"1MBあたり"]
["海外グループ3",10,10,"1MBあたり"]
["海外グループ4",13,13,"1MBあたり"]
["海外グループ5",20,20,"1MBあたり"]
["海外グループ6",38,38,"1MBあたり"]
[]
["■InfoSphereモバイルマルチキャリアタイプオプション料金"]
[null,"金額(税抜)","金額(税込)","対象"]
["グローバルIPアドレス",500,{"$f":"B35*1.1","v":550},"1回線毎"]

{"sheet":"ご利用までの流れ","index":4,"n_rows":0,"n_cols":0,"rows_kept":0,"cut":false,"hidden":false,"merged":[]}

{"sheet":"AtMOSInput(ReadOnly)","index":5,"n_rows":51,"n_cols":4,"rows_kept":51,"cut":false,"hidden":true,"merged":[]}
["AtMOS項目名","AtMOS入力値","型","AtMOSコード"]
["申込日",{"$f":"IF(AND(初期設定・企業識別子追加!O10=\"\",初期設定・企業識別子追加!S10=\"\",初期設定・企業識別子追加!W10=\"\"),\"\",初期設定・企業識別子追加!M10&初期設定・企業識別子追加!O10&\"/\"&初期設定・企業識別子追加!S10&\"/\"&初期設定・企業識別子追加!W10)","v":""},"日付"]
["システム番号",{"$f":"初期設定・企業識別子追加!AG10 & 初期設定・企業識別子追加!AJ10 & 初期設定・企業識別子追加!AL10 & 初期設定・企業識別子追加!AN10 & 初期設定・企業識別子追加!AP10 & 初期設定・企業識別子追加!AR10","v":"選択式"},"文字列"]
["システム名",{"$f":"IF(初期設定・企業識別子追加!K30=\"\",\"\",初期設定・企業識別子追加!K30)","v":""},"文字列"]
["ネットワーク種別",2,"コード：ネットワーク種別","1:VPNタイプ\n2:インターネットタイプ"]
["端末IPアドレス帯",{"$f":"IF(初期設定・企業識別子追加!K43=\"■\",\"5\",IF(初期設定・企業識別子追加!X43=\"■\",\"1\",\"\"))","v":""},"コード：クラス","1:グローバルアドレス\n2:シェアードアドレス\n3:プライベートアドレス(クラスA)\n4:プライベートアドレス(クラスB)\n5:標準サービス（プライベートIP固定）"]
["サフィックス",{"$f":"B8&\".\" & B9& \".\" &B10","v":"..sphere.jp"},"文字列"]
["【サフィックス】企業識別子",{"$f":"IF(初期設定・企業識別子追加!K33=\"\",\"\",初期設定・企業識別子追加!K33)","v":""},"文字列"]
["【サフィックス】サービス識別子",{"$f":"IF(AND(B12=4,B11=2),\"icm\",IF(AND(B12=4,B11=1),\"ium\",IF(AND(B12=6,B11=2),\"cib\",\"\")))","v":""},"文字列"]
["【サフィックス】ドメイン","sphere.jp","文字列"]
["認証方式",{"$f":"IF(AND(初期設定・企業識別子追加!K18=\"□\",初期設定・企業識別子追加!T18=\"□\",初期設定・企業識別子追加!AF18=\"□\"),\"\",IF(初期設定・企業識別子追加!T18=\"■\",1,2))","v":""},"コード：アカウントタイプ","1:ユニークID\n2:共通ID"]
["【通信方式】通信規格",{"$f":"IF(OR(初期設定・企業識別子追加!K18=\"■\",初期設定・企業識別子追加!T18=\"■\"),4,IF(初期設定・企業識別子追加!AF18=\"■\",6,\"\"))","v":""},"コード：通信規格","1:3G\n2:LTE\n3:バックアップ\n4:マルチキャリア\n5:チップSIMスタンダード\n6:チップSIMマルチキャリア"]
["【通信方式】PDPタイプ",2,"コード：PDPタイプ","1:PPP\n2:IP"]
["IPアドレス数",{"$f":"IFERROR(MID(初期設定・企業識別子追加!K46,FIND(\"/\",初期設定・企業識別子追加!K46),3),\"\")","v":""},"文字列"]
["【NAT機能】NAT機能有無",null,"コード：NAT利用","0:利用しない\n1:利用する"]
["【NAT機能】NAT後アドレス帯",null,"文字列"]
["【NAT機能】NAT後IPアドレス数",null,"文字列"]
["【NAT機能】NAT後試験アドレス",null,"文字列"]
["折り返し通信禁止",null,"コード：折り返し通信禁止有無","0:利用しない\n1:利用する"]
["【SIM管理API】SIM管理API有無",{"$f":"IF(AND(初期設定・企業識別子追加!K12=\"■\",初期設定・企業識別子追加!Z14=\"■\"),0,\"\")","v":""},"コード：SIM管理API利用","0:利用しない\n1:利用する"]
["【SIM管理API】ユーザID",null,"文字列"]
["【SIM管理API】パスワード",null,"文字列"]
["【DNSアドレス付与】DNSアドレス付与有無",null,"コード：DNSアドレス付与","0:利用しない\n1:利用する"]
["【DNSアドレス付与】プライマリDNS",null,"文字列"]
["【DNSアドレス付与】セカンダリDNS",null,"文字列"]
["【カスタマコントロール利用管理者】ユーザID",{"$f":"IF(B20=0,初期設定・企業識別子追加!P57&\"@\"&初期設定・企業識別子追加!Y57,\"\")","v":""},"文字列"]
["【カスタマコントロール利用管理者】パスワード",{"$f":"IF(B20=0,初期設定・企業識別子追加!P61,\"\")","v":""},"文字列"]
["最低利用期間",{"$f":"IF(初期設定・企業識別子追加!J80=\"\",\"\",初期設定・企業識別子追加!J80)","v":0},"数値（月数）"]
["利用開始希望日",{"$f":"IF(AND(初期設定・企業識別子追加!P36=\"\",  初期設定・企業識別子追加!T36=\"\", 初期設定・企業識別子追加!X36=\"\"),\"\",  初期設定・企業識別子追加!O36 &初期設定・企業識別子追加!P36& \"/\" & 初期設定・企業識別子追加!T36 & \"/\" & 初期設定・企業識別子追加!X36)","v":""},"日付"]
["契約番号",{"$f":"IF(初期設定・企業識別子追加!J82=\"\",\"\",初期設定・企業識別子追加!J82)","v":""},"文字列"]
["OEM・代理店識別番号",{"$f":"IF(NOT(AND(初期設定・企業識別子追加!K12=\"■\",初期設定・企業識別子追加!Z14=\"■\")),\"\",IF(初期設定・企業識別子追加!J81=\"\",\"\",初期設定・企業識別子追加!J81))","v":""},"文字列"]
["未使用"]
["未使用"]
["未使用"]
["未使用"]
["未使用"]
["未使用"]
["未使用"]
["設定完了通知先アドレス(ユーザ)",{"$f":"IF(OR(AND(初期設定・企業識別子追加!P38=\"□\",初期設定・企業識別子追加!V38=\"□\",初期設定・企業識別子追加!V39=\"□\"),初期設定・企業識別子追加!P38=\"■\"),\"\",IF(初期設定・企業識別子追加!V38=\"■\",初期設定・企業識別子追加!AB27,初期設定・企業識別子追加!Z39&\"@\"&初期設定・企業識別子追加!AE39))","v":""},"文字列"]
["設定完了通知先アドレス(営業/OEM)",{"$f":"IF(初期設定・企業識別子追加!J84=\"\",\"\",初期設定・企業識別子追加!J84)","v":""}]
["設定完了通知先アドレス(プロダクト)","mobile-g@nttpc.co.jp"]
[]
[]
[]
[]
[]
[]
["請求先ID",{"$f":"IF(初期設定・企業識別子追加!J85=\"\",\"\",初期設定・企業識別子追加!J85)","v":""}]
["1SIMあたり無料通信量",30720]
["従量課金通信料単価(上り)",0.2]
["従量課金通信料単価(下り)","1"]

{"sheet":"AtMOSInputUnitPrice(ReadOnly)","index":6,"n_rows":304,"n_cols":8,"rows_kept":304,"cut":false,"hidden":true,"merged":[]}
["適用開始年月","明細内訳コード","型番","端末機種コード","金額","請求明細名","端末名称（レンタル・物販の場合）","備考"]
[null,"P00001445","UX302NC",null,0,"端末初期費用（ＵＳＢ）：","UX302NC"]
[null,"P00001445","UX302NC-R",null,"0","端末初期費用（ＵＳＢ）：","UX302NC-R"]
[null,"P00001445","MF121/USB(S)",null,0,"端末初期費用（ＵＳＢ）：","MF121"]
[null,"P00001445","WM320/USB(SL)",null,0,"端末初期費用（ＵＳＢ）：","WM320"]
[null,"P00001446","PA-MR05LN",null,"0","端末初期費用（ＷｉＦｉ）：","Aterm MR05LN"]
[null,"P00001446","PA-MR05LN-CLD",null,"0","端末初期費用（ＷｉＦｉ）：","Aterm MR05LN クレードルセット"]
[null,"P00001446","MR04LN/WiFi(SL)",null,0,"端末初期費用（ＷｉＦｉ）：","Aterm MR04LN"]
[null,"P00001446","MR04LN(CDL)/WiFi(SL)",null,0,"端末初期費用（ＷｉＦｉ）：","Aterm MR04LN クレードルセット"]
[null,"P00001446","MR03LN/WiFi(SL)",null,0,"端末初期費用（ＷｉＦｉ）：","Aterm MR03LN"]
[null,"P00001448","A110-AC1AN0-X01",null,0,"端末一括購入代金：","MB-A110 ACアダプタ付#標準保証(1年)"]
[null,"P00001448","A110-AC1AN0-X02",null,0,"端末一括購入代金：","MB-A110 ACアダプタ付#有償保証(2年)"]
[null,"P00001448","A110-AC1AN0-X03",null,0,"端末一括購入代金：","MB-A110 ACアダプタ付#有償保証(3年)"]
[null,"P00001448","A110-AC1AN0-X05",null,0,"端末一括購入代金：","MB-A110 ACアダプタ付#有償保証(5年)"]
[null,"P00001448","A110-AC1AN0-Y01",null,0,"端末一括購入代金：","MB-A110 ACアダプタ付#有償保証/先出しセンドバック(1年)"]
[null,"P00001448","A110-AC1AN0-Y02",null,0,"端末一括購入代金：","MB-A110 ACアダプタ付#有償保証/先出しセンドバック(2年)"]
[null,"P00001448","A110-AC1AN0-Y03",null,0,"端末一括購入代金：","MB-A110 ACアダプタ付#有償保証/先出しセンドバック(3年)"]
[null,"P00001448","A110-AC1AN0-Y05",null,0,"端末一括購入代金：","MB-A110 ACアダプタ付#有償保証/先出しセンドバック(5年)"]
[null,"P00001448","A100-AC1AN0-X01",null,0,"端末一括購入代金：","MB-A100 ACアダプタ付#標準保証(1年)"]
[null,"P00001448","A100-AC1AN0-X02",null,0,"端末一括購入代金：","MB-A100 ACアダプタ付#有償保証(2年)"]
[null,"P00001448","A100-AC1AN0-X03",null,0,"端末一括購入代金：","MB-A100 ACアダプタ付#有償保証(3年)"]
[null,"P00001448","A100-AC1AN0-X05",null,0,"端末一括購入代金：","MB-A100 ACアダプタ付#有償保証(5年)"]
[null,"P00001448","A100-AC1AN0-Y01",null,0,"端末一括購入代金：","MB-A100 ACアダプタ付#有償保証/先出しセンドバック(1年)"]
[null,"P00001448","A100-AC1AN0-Y02",null,0,"端末一括購入代金：","MB-A100 ACアダプタ付#有償保証/先出しセンドバック(2年)"]
[null,"P00001448","A100-AC1AN0-Y03",null,0,"端末一括購入代金：","MB-A100 ACアダプタ付#有償保証/先出しセンドバック(3年)"]
[null,"P00001448","A100-AC1AN0-Y05",null,0,"端末一括購入代金：","MB-A100 ACアダプタ付#有償保証/先出しセンドバック(5年)"]
[null,"P00001448","A110-AC1AN1-X01",null,0,"端末一括購入代金：","MB-A110 ACアダプタ付/外部アンテナ1本#標準保証(1年)"]
[null,"P00001448","A110-AC1AN2-X02",null,0,"端末一括購入代金：","MB-A110 ACアダプタ付/外部アンテナ2本#有償保証(2年)"]
[null,"P00001448","A110-AC1AN2-X03",null,0,"端末一括購入代金：","MB-A110 ACアダプタ付/外部アンテナ2本#有償保証(3年)"]
[null,"P00001448","A110-AC1AN1-X05",null,0,"端末一括購入代金：","MB-A110 ACアダプタ付/外部アンテナ1本#有償保証(5年)"]
[null,"P00001448","A110-AC1AN1-Y01",null,0,"端末一括購入代金：","MB-A110 ACアダプタ付/外部アンテナ1本#有償保証/先出しセンドバック(1年)"]
[null,"P00001448","A110-AC1AN2-Y02",null,0,"端末一括購入代金：","MB-A110 ACアダプタ付/外部アンテナ2本#有償保証/先出しセンドバック(2年)"]
[null,"P00001448","A110-AC1AN2-Y03",null,0,"端末一括購入代金：","MB-A110 ACアダプタ付/外部アンテナ2本#有償保証/先出しセンドバック(3年)"]
[null,"P00001448","A110-AC1AN1-Y05",null,0,"端末一括購入代金：","MB-A110 ACアダプタ付/外部アンテナ1本#有償保証/先出しセンドバック(5年)"]
[null,"P00001448","A100-AC1AN1-X01",null,0,"端末一括購入代金：","MB-A100 ACアダプタ付/外部アンテナ1本#標準保証(1年)"]
[null,"P00001448","A100-AC1AN2-X02",null,0,"端末一括購入代金：","MB-A100 ACアダプタ付/外部アンテナ2本#有償保証(2年)"]
[null,"P00001448","A100-AC1AN2-X03",null,0,"端末一括購入代金：","MB-A100 ACアダプタ付/外部アンテナ2本#有償保証(3年)"]
[null,"P00001448","A100-AC1AN1-X05",null,0,"端末一括購入代金：","MB-A100 ACアダプタ付/外部アンテナ1本#有償保証(5年)"]
[null,"P00001448","A100-AC1AN1-Y01",null,0,"端末一括購入代金：","MB-A100 ACアダプタ付/外部アンテナ1本#有償保証/先出しセンドバック(1年)"]
[null,"P00001448","A100-AC1AN2-Y02",null,0,"端末一括購入代金：","MB-A100 ACアダプタ付/外部アンテナ2本#有償保証/先出しセンドバック(2年)"]
[null,"P00001448","A100-AC1AN2-Y03",null,0,"端末一括購入代金：","MB-A100 ACアダプタ付/外部アンテナ2本#有償保証/先出しセンドバック(3年)"]
[null,"P00001448","A100-AC1AN1-Y05",null,0,"端末一括購入代金：","MB-A100 ACアダプタ付/外部アンテナ1本#有償保証/先出しセンドバック(5年)"]
[null,"P00001448","A100-AC0AN0-X01",null,0,"端末一括購入代金：","MB-A100#標準保証(1年)"]
[null,"P00001448","A100-AC0AN0-X02",null,0,"端末一括購入代金：","MB-A100#有償保証(2年)"]
[null,"P00001448","A100-AC0AN0-X03",null,0,"端末一括購入代金：","MB-A100#有償保証(3年)"]
[null,"P00001448","A100-AC0AN0-X05",null,0,"端末一括購入代金：","MB-A100#有償保証(5年)"]
[null,"P00001448","A100-AC0AN0-Y01",null,0,"端末一括購入代金：","MB-A100#有償保証/先出しセンドバック(1年)"]
[null,"P00001448","A100-AC0AN0-Y02",null,0,"端末一括購入代金：","MB-A100#有償保証/先出しセンドバック(2年)"]
[null,"P00001448","A100-AC0AN0-Y03",null,0,"端末一括購入代金：","MB-A100#有償保証/先出しセンドバック(3年)"]
[null,"P00001448","A100-AC0AN0-Y05",null,0,"端末一括購入代金：","MB-A100#有償保証/先出しセンドバック(5年)"]
[null,"P00001448","A110-AC0AN0-X01",null,0,"端末一括購入代金：","MB-A110#標準保証(1年)"]
[null,"P00001448","A110-AC0AN0-X02",null,0,"端末一括購入代金：","MB-A110#有償保証(2年)"]
[null,"P00001448","A110-AC0AN0-X03",null,0,"端末一括購入代金：","MB-A110#有償保証(3年)"]
[null,"P00001448","A110-AC0AN0-X05",null,0,"端末一括購入代金：","MB-A110#有償保証(5年)"]
[null,"P00001448","A110-AC0AN0-Y01",null,0,"端末一括購入代金：","MB-A110#有償保証/先出しセンドバック(1年)"]
[null,"P00001448","A110-AC0AN0-Y02",null,0,"端末一括購入代金：","MB-A110#有償保証/先出しセンドバック(2年)"]
[null,"P00001448","A110-AC0AN0-Y03",null,0,"端末一括購入代金：","MB-A110#有償保証/先出しセンドバック(3年)"]
[null,"P00001448","A110-AC0AN0-Y05",null,0,"端末一括購入代金：","MB-A110#有償保証/先出しセンドバック(5年)"]
[null,"P00001448","RX210-AC000-ANT0-X01",null,0,"端末一括購入代金：","RX210#標準保証(1年)"]
[null,"P00001448","RX210-AC000-ANT0-X02",null,0,"端末一括購入代金：","RX210#有償保証(2年)"]
[null,"P00001448","RX210-AC000-ANT0-X03",null,0,"端末一括購入代金：","RX210#有償保証(3年)"]
[null,"P00001448","RX210-AC000-ANT0-X05",null,0,"端末一括購入代金：","RX210#有償保証(5年)"]
[null,"P00001448","RX210-AC020-ANT0-X01",null,0,"端末一括購入代金：","RX210 ACアダプタ付#標準保証(1年)"]
[null,"P00001448","RX210-AC020-ANT0-X02",null,0,"端末一括購入代金：","RX210 ACアダプタ付#有償保証(2年)"]
[null,"P00001448","RX210-AC020-ANT0-X03",null,0,"端末一括購入代金：","RX210 ACアダプタ付#有償保証(3年)"]
[null,"P00001448","RX210-AC020-ANT0-X05",null,0,"端末一括購入代金：","RX210 ACアダプタ付#有償保証(5年)"]
[null,"P00001448","RX210-AC000-ROD2-X01",null,0,"端末一括購入代金：","RX210/LTEロッドアンテナ×2本#標準保証(1年)"]
[null,"P00001448","RX210-AC000-ROD2-X02",null,0,"端末一括購入代金：","RX210/LTEロッドアンテナ×2本#有償保証(2年)"]
[null,"P00001448","RX210-AC000-ROD2-X03",null,0,"端末一括購入代金：","RX210/LTEロッドアンテナ×2本#有償保証(3年)"]
[null,"P00001448","RX210-AC000-ROD2-X05",null,0,"端末一括購入代金：","RX210/LTEロッドアンテナ×2本#有償保証(5年)"]
[null,"P00001448","RX210-AC000-NEO2-X01",null,0,"端末一括購入代金：","RX210/LTEネオジムマグネットアンテナ×2本#標準保証(1年)"]
[null,"P00001448","RX210-AC000-NEO2-X02",null,0,"端末一括購入代金：","RX210/LTEネオジムマグネットアンテナ×2本#有償保証(2年)"]
[null,"P00001448","RX210-AC000-NEO2-X03",null,0,"端末一括購入代金：","RX210/LTEネオジムマグネットアンテナ×2本#有償保証(3年)"]
[null,"P00001448","RX210-AC000-NEO2-X05",null,0,"端末一括購入代金：","RX210/LTEネオジムマグネットアンテナ×2本#有償保証(5年)"]
[null,"P00001448","RX210-AC000-MB2-X01",null,0,"端末一括購入代金：","RX210/MBアンテナ×2本#標準保証(1年)"]
[null,"P00001448","RX210-AC000-MB2-X02",null,0,"端末一括購入代金：","RX210/MBアンテナ×2本#有償保証(2年)"]
[null,"P00001448","RX210-AC000-MB2-X03",null,0,"端末一括購入代金：","RX210/MBアンテナ×2本#有償保証(3年)"]
[null,"P00001448","RX210-AC000-MB2-X05",null,0,"端末一括購入代金：","RX210/MBアンテナ×2本#有償保証(5年)"]
[null,"P00001448","RX210-AC020-ROD2-X01",null,0,"端末一括購入代金：","RX210 ACアダプタ付/LTEロッドアンテナ×2本#標準保証(1年)"]
[null,"P00001448","RX210-AC020-ROD2-X02",null,0,"端末一括購入代金：","RX210 ACアダプタ付/LTEロッドアンテナ×2本#有償保証(2年)"]
[null,"P00001448","RX210-AC020-ROD2-X03",null,0,"端末一括購入代金：","RX210 ACアダプタ付/LTEロッドアンテナ×2本#有償保証(3年)"]
[null,"P00001448","RX210-AC020-ROD2-X05",null,0,"端末一括購入代金：","RX210 ACアダプタ付/LTEロッドアンテナ×2本#有償保証(5年)"]
[null,"P00001448","RX210-AC020-NEO2-X01",null,0,"端末一括購入代金：","RX210 ACアダプタ付/LTEネオジムマグネットアンテナ×2本#標準保証(1年)"]
[null,"P00001448","RX210-AC020-NEO2-X02",null,0,"端末一括購入代金：","RX210 ACアダプタ付/LTEネオジムマグネットアンテナ×2本#有償保証(2年)"]
[null,"P00001448","RX210-AC020-NEO2-X03",null,0,"端末一括購入代金：","RX210 ACアダプタ付/LTEネオジムマグネットアンテナ×2本#有償保証(3年)"]
[null,"P00001448","RX210-AC020-NEO2-X05",null,0,"端末一括購入代金：","RX210 ACアダプタ付/LTEネオジムマグネットアンテナ×2本#有償保証(5年)"]
[null,"P00001448","RX210-AC020-MB2-X01",null,0,"端末一括購入代金：","RX210 ACアダプタ付/MBアンテナ×2本#標準保証(1年)"]
[null,"P00001448","RX210-AC020-MB2-X02",null,0,"端末一括購入代金：","RX210 ACアダプタ付/MBアンテナ×2本#有償保証(2年)"]
[null,"P00001448","RX210-AC020-MB2-X03",null,0,"端末一括購入代金：","RX210 ACアダプタ付/MBアンテナ×2本#有償保証(3年)"]
[null,"P00001448","RX210-AC020-MB2-X05",null,0,"端末一括購入代金：","RX210 ACアダプタ付/MBアンテナ×2本#有償保証(5年)"]
[null,"P00001448","RX110-AC000-ANT0-X01",null,0,"端末一括購入代金：","RX110#標準保証(1年)"]
[null,"P00001448","RX110-AC000-ANT0-X02",null,0,"端末一括購入代金：","RX110#有償保証(2年)"]
[null,"P00001448","RX110-AC000-ANT0-X03",null,0,"端末一括購入代金：","RX110#有償保証(3年)"]
[null,"P00001448","RX110-AC000-ANT0-X05",null,0,"端末一括購入代金：","RX110#有償保証(5年)"]
[null,"P00001448","RX110-AC020-ANT0-X01",null,0,"端末一括購入代金：","RX110 ACアダプタ付#標準保証(1年)"]
[null,"P00001448","RX110-AC020-ANT0-X02",null,0,"端末一括購入代金：","RX110 ACアダプタ付#有償保証(2年)"]
[null,"P00001448","RX110-AC020-ANT0-X03",null,0,"端末一括購入代金：","RX110 ACアダプタ付#有償保証(3年)"]
[null,"P00001448","RX110-AC020-ANT0-X05",null,0,"端末一括購入代金：","RX110 ACアダプタ付#有償保証(5年)"]
[null,"P00001448","RX110-AC000-RAD1-X01",null,0,"端末一括購入代金：","RX110/RADAアンテナ×1本#標準保証(1年)"]
[null,"P00001448","RX110-AC000-RAD1-X02",null,0,"端末一括購入代金：","RX110/RADAアンテナ×1本#有償保証(2年)"]
[null,"P00001448","RX110-AC000-RAD1-X03",null,0,"端末一括購入代金：","RX110/RADAアンテナ×1本#有償保証(3年)"]
[null,"P00001448","RX110-AC000-RAD1-X05",null,0,"端末一括購入代金：","RX110/RADAアンテナ×1本#有償保証(5年)"]
[null,"P00001448","RX110-AC000-MAG1-X01",null,0,"端末一括購入代金：","RX110/マグネットアンテナ×1本#標準保証(1年)"]
[null,"P00001448","RX110-AC000-MAG1-X02",null,0,"端末一括購入代金：","RX110/マグネットアンテナ×1本#有償保証(2年)"]
[null,"P00001448","RX110-AC000-MAG1-X03",null,0,"端末一括購入代金：","RX110/マグネットアンテナ×1本#有償保証(3年)"]
[null,"P00001448","RX110-AC000-MAG1-X05",null,0,"端末一括購入代金：","RX110/マグネットアンテナ×1本#有償保証(5年)"]
[null,"P00001448","RX110-AC020-RAD1-X01",null,0,"端末一括購入代金：","RX110 ACアダプタ付/RADAアンテナ×1本#標準保証(1年)"]
[null,"P00001448","RX110-AC020-RAD1-X02",null,0,"端末一括購入代金：","RX110 ACアダプタ付/RADAアンテナ×1本#有償保証(2年)"]
[null,"P00001448","RX110-AC020-RAD1-X03",null,0,"端末一括購入代金：","RX110 ACアダプタ付/RADAアンテナ×1本#有償保証(3年)"]
[null,"P00001448","RX110-AC020-RAD1-X05",null,0,"端末一括購入代金：","RX110 ACアダプタ付/RADAアンテナ×1本#有償保証(5年)"]
[null,"P00001448","RX110-AC020-MAG1-X01",null,0,"端末一括購入代金：","RX110 ACアダプタ付/マグネットアンテナ×1本#標準保証(1年)"]
[null,"P00001448","RX110-AC020-MAG1-X02",null,0,"端末一括購入代金：","RX110 ACアダプタ付/マグネットアンテナ×1本#有償保証(2年)"]
[null,"P00001448","RX110-AC020-MAG1-X03",null,0,"端末一括購入代金：","RX110 ACアダプタ付/マグネットアンテナ×1本#有償保証(3年)"]
[null,"P00001448","RX110-AC020-MAG1-X05",null,0,"端末一括購入代金：","RX110 ACアダプタ付/マグネットアンテナ×1本#有償保証(5年)"]
[null,"P00001448","AX220-AC000-ANT0-X01",null,0,"端末一括購入代金：","AX220#標準保証(1年)"]
[null,"P00001448","AX220-AC000-ANT0-X02",null,0,"端末一括購入代金：","AX220#有償保証(2年)"]
[null,"P00001448","AX220-AC000-ANT0-X03",null,0,"端末一括購入代金：","AX220#有償保証(3年)"]
[null,"P00001448","AX220-AC000-ANT0-X05",null,0,"端末一括購入代金：","AX220#有償保証(5年)"]
[null,"P00001448","AX220-AC021-ANT0-X01",null,0,"端末一括購入代金：","AX220 ACアダプタ付#標準保証(1年)"]
[null,"P00001448","AX220-AC021-ANT0-X02",null,0,"端末一括購入代金：","AX220 ACアダプタ付#有償保証(2年)"]
[null,"P00001448","AX220-AC021-ANT0-X03",null,0,"端末一括購入代金：","AX220 ACアダプタ付#有償保証(3年)"]
[null,"P00001448","AX220-AC021-ANT0-X05",null,0,"端末一括購入代金：","AX220 ACアダプタ付#有償保証(5年)"]
[null,"P00001448","AX220-AC000-ROD2-X01",null,0,"端末一括購入代金：","AX220/LTEロッドアンテナ×2本#標準保証(1年)"]
[null,"P00001448","AX220-AC000-ROD2-X02",null,0,"端末一括購入代金：","AX220/LTEロッドアンテナ×2本#有償保証(2年)"]
[null,"P00001448","AX220-AC000-ROD2-X03",null,0,"端末一括購入代金：","AX220/LTEロッドアンテナ×2本#有償保証(3年)"]
[null,"P00001448","AX220-AC000-ROD2-X05",null,0,"端末一括購入代金：","AX220/LTEロッドアンテナ×2本#有償保証(5年)"]
[null,"P00001448","AX220-AC000-NEO2-X01",null,0,"端末一括購入代金：","AX220/LTEネオジムマグネットアンテナ×2本#標準保証(1年)"]
[null,"P00001448","AX220-AC000-NEO2-X02",null,0,"端末一括購入代金：","AX220/LTEネオジムマグネットアンテナ×2本#有償保証(2年)"]
[null,"P00001448","AX220-AC000-NEO2-X03",null,0,"端末一括購入代金：","AX220/LTEネオジムマグネットアンテナ×2本#有償保証(3年)"]
[null,"P00001448","AX220-AC000-NEO2-X05",null,0,"端末一括購入代金：","AX220/LTEネオジムマグネットアンテナ×2本#有償保証(5年)"]
[null,"P00001448","AX220-AC000-MB2-X01",null,0,"端末一括購入代金：","AX220/MBアンテナ×2本#標準保証(1年)"]
[null,"P00001448","AX220-AC000-MB2-X02",null,0,"端末一括購入代金：","AX220/MBアンテナ×2本#有償保証(2年)"]
[null,"P00001448","AX220-AC000-MB2-X03",null,0,"端末一括購入代金：","AX220/MBアンテナ×2本#有償保証(3年)"]
[null,"P00001448","AX220-AC000-MB2-X05",null,0,"端末一括購入代金：","AX220/MBアンテナ×2本#有償保証(5年)"]
[null,"P00001448","AX220-AC000-MIM1-X01",null,0,"端末一括購入代金：","AX220/MIMOアンテナ×1本#標準保証(1年)"]
[null,"P00001448","AX220-AC000-MIM1-X02",null,0,"端末一括購入代金：","AX220/MIMOアンテナ×1本#有償保証(2年)"]
[null,"P00001448","AX220-AC000-MIM1-X03",null,0,"端末一括購入代金：","AX220/MIMOアンテナ×1本#有償保証(3年)"]
[null,"P00001448","AX220-AC000-MIM1-X05",null,0,"端末一括購入代金：","AX220/MIMOアンテナ×1本#有償保証(5年)"]
[null,"P00001448","AX220-AC021-ROD2-X01",null,0,"端末一括購入代金：","AX220 ACアダプタ付/LTEロッドアンテナ×2本#標準保証(1年)"]
[null,"P00001448","AX220-AC021-ROD2-X02",null,0,"端末一括購入代金：","AX220 ACアダプタ付/LTEロッドアンテナ×2本#有償保証(2年)"]
[null,"P00001448","AX220-AC021-ROD2-X03",null,0,"端末一括購入代金：","AX220 ACアダプタ付/LTEロッドアンテナ×2本#有償保証(3年)"]
[null,"P00001448","AX220-AC021-ROD2-X05",null,0,"端末一括購入代金：","AX220 ACアダプタ付/LTEロッドアンテナ×2本#有償保証(5年)"]
[null,"P00001448","AX220-AC021-NEO2-X01",null,0,"端末一括購入代金：","AX220 ACアダプタ付/LTEネオジムマグネットアンテナ×2本#標準保証(1年)"]
[null,"P00001448","AX220-AC021-NEO2-X02",null,0,"端末一括購入代金：","AX220 ACアダプタ付/LTEネオジムマグネットアンテナ×2本#有償保証(2年)"]
[null,"P00001448","AX220-AC021-NEO2-X03",null,0,"端末一括購入代金：","AX220 ACアダプタ付/LTEネオジムマグネットアンテナ×2本#有償保証(3年)"]
[null,"P00001448","AX220-AC021-NEO2-X05",null,0,"端末一括購入代金：","AX220 ACアダプタ付/LTEネオジムマグネットアンテナ×2本#有償保証(5年)"]
[null,"P00001448","AX220-AC021-MB2-X01",null,0,"端末一括購入代金：","AX220 ACアダプタ付/MBアンテナ×2本#標準保証(1年)"]
[null,"P00001448","AX220-AC021-MB2-X02",null,0,"端末一括購入代金：","AX220 ACアダプタ付/MBアンテナ×2本#有償保証(2年)"]
[null,"P00001448","AX220-AC021-MB2-X03",null,0,"端末一括購入代金：","AX220 ACアダプタ付/MBアンテナ×2本#有償保証(3年)"]
[null,"P00001448","AX220-AC021-MB2-X05",null,0,"端末一括購入代金：","AX220 ACアダプタ付/MBアンテナ×2本#有償保証(5年)"]
[null,"P00001448","AX220-AC021-MIM1-X01",null,0,"端末一括購入代金：","AX220 ACアダプタ付/MIMOアンテナ×1本#標準保証(1年)"]
[null,"P00001448","AX220-AC021-MIM1-X02",null,0,"端末一括購入代金：","AX220 ACアダプタ付/MIMOアンテナ×1本#有償保証(2年)"]
[null,"P00001448","AX220-AC021-MIM1-X03",null,0,"端末一括購入代金：","AX220 ACアダプタ付/MIMOアンテナ×1本#有償保証(3年)"]
[null,"P00001448","AX220-AC021-MIM1-X05",null,0,"端末一括購入代金：","AX220 ACアダプタ付/MIMOアンテナ×1本#有償保証(5年)"]
[null,"P00001448","AX110-AC000-ANT0-X01",null,0,"端末一括購入代金：","AX110#標準保証(1年)"]
[null,"P00001448","AX110-AC000-ANT0-X02",null,0,"端末一括購入代金：","AX110#有償保証(2年)"]
[null,"P00001448","AX110-AC000-ANT0-X03",null,0,"端末一括購入代金：","AX110#有償保証(3年)"]
[null,"P00001448","AX110-AC000-ANT0-X05",null,0,"端末一括購入代金：","AX110#有償保証(5年)"]
[null,"P00001448","AX110-AC021-ANT0-X01",null,0,"端末一括購入代金：","AX110 ACアダプタ付#標準保証(1年)"]
[null,"P00001448","AX110-AC021-ANT0-X02",null,0,"端末一括購入代金：","AX110 ACアダプタ付#有償保証(2年)"]
[null,"P00001448","AX110-AC021-ANT0-X03",null,0,"端末一括購入代金：","AX110 ACアダプタ付#有償保証(3年)"]
[null,"P00001448","AX110-AC021-ANT0-X05",null,0,"端末一括購入代金：","AX110 ACアダプタ付#有償保証(5年)"]
[null,"P00001448","AX110-AC000-RAD1-X01",null,0,"端末一括購入代金：","AX110/RADAアンテナ×1本#標準保証(1年)"]
[null,"P00001448","AX110-AC000-RAD1-X02",null,0,"端末一括購入代金：","AX110/RADAアンテナ×1本#有償保証(2年)"]
[null,"P00001448","AX110-AC000-RAD1-X03",null,0,"端末一括購入代金：","AX110/RADAアンテナ×1本#有償保証(3年)"]
[null,"P00001448","AX110-AC000-RAD1-X05",null,0,"端末一括購入代金：","AX110/RADAアンテナ×1本#有償保証(5年)"]
[null,"P00001448","AX110-AC000-MAG1-X01",null,0,"端末一括購入代金：","AX110/マグネットアンテナ×1本#標準保証(1年)"]
[null,"P00001448","AX110-AC000-MAG1-X02",null,0,"端末一括購入代金：","AX110/マグネットアンテナ×1本#有償保証(2年)"]
[null,"P00001448","AX110-AC000-MAG1-X03",null,0,"端末一括購入代金：","AX110/マグネットアンテナ×1本#有償保証(3年)"]
[null,"P00001448","AX110-AC000-MAG1-X05",null,0,"端末一括購入代金：","AX110/マグネットアンテナ×1本#有償保証(5年)"]
[null,"P00001448","AX110-AC021-RAD1-X01",null,0,"端末一括購入代金：","AX110 ACアダプタ付/RADAアンテナ×1本#標準保証(1年)"]
[null,"P00001448","AX110-AC021-RAD1-X02",null,0,"端末一括購入代金：","AX110 ACアダプタ付/RADAアンテナ×1本#有償保証(2年)"]
[null,"P00001448","AX110-AC021-RAD1-X03",null,0,"端末一括購入代金：","AX110 ACアダプタ付/RADAアンテナ×1本#有償保証(3年)"]
[null,"P00001448","AX110-AC021-RAD1-X05",null,0,"端末一括購入代金：","AX110 ACアダプタ付/RADAアンテナ×1本#有償保証(5年)"]
[null,"P00001448","AX110-AC021-MAG1-X01",null,0,"端末一括購入代金：","AX110 ACアダプタ付/マグネットアンテナ×1本#標準保証(1年)"]
[null,"P00001448","AX110-AC021-MAG1-X02",null,0,"端末一括購入代金：","AX110 ACアダプタ付/マグネットアンテナ×1本#有償保証(2年)"]
[null,"P00001448","AX110-AC021-MAG1-X03",null,0,"端末一括購入代金：","AX110 ACアダプタ付/マグネットアンテナ×1本#有償保証(3年)"]
[null,"P00001448","AX110-AC021-MAG1-X05",null,0,"端末一括購入代金：","AX110 ACアダプタ付/マグネットアンテナ×1本#有償保証(5年)"]
[null,"P00001448","RX220-AC000-ANT0-X01",null,0,"端末一括購入代金：","RX220#標準保証(1年)"]
[null,"P00001448","RX220-AC000-ANT0-X02",null,0,"端末一括購入代金：","RX220#有償保証(2年)"]
[null,"P00001448","RX220-AC000-ANT0-X03",null,0,"端末一括購入代金：","RX220#有償保証(3年)"]
[null,"P00001448","RX220-AC000-ANT0-X05",null,0,"端末一括購入代金：","RX220#有償保証(5年)"]
[null,"P00001448","RX220-AC020-ANT0-X01",null,0,"端末一括購入代金：","RX220 ACアダプタ付#標準保証(1年)"]
[null,"P00001448","RX220-AC020-ANT0-X02",null,0,"端末一括購入代金：","RX220 ACアダプタ付#有償保証(2年)"]
[null,"P00001448","RX220-AC020-ANT0-X03",null,0,"端末一括購入代金：","RX220 ACアダプタ付#有償保証(3年)"]
[null,"P00001448","RX220-AC020-ANT0-X05",null,0,"端末一括購入代金：","RX220 ACアダプタ付#有償保証(5年)"]
[null,"P00001448","RX220-AC000-ROD2-X01",null,0,"端末一括購入代金：","RX220/LTEロッドアンテナ×2本#標準保証(1年)"]
[null,"P00001448","RX220-AC000-ROD2-X02",null,0,"端末一括購入代金：","RX220/LTEロッドアンテナ×2本#有償保証(2年)"]
[null,"P00001448","RX220-AC000-ROD2-X03",null,0,"端末一括購入代金：","RX220/LTEロッドアンテナ×2本#有償保証(3年)"]
[null,"P00001448","RX220-AC000-ROD2-X05",null,0,"端末一括購入代金：","RX220/LTEロッドアンテナ×2本#有償保証(5年)"]
[null,"P00001448","RX220-AC000-NEO2-X01",null,0,"端末一括購入代金：","RX220/LTEネオジムマグネットアンテナ×2本#標準保証(1年)"]
[null,"P00001448","RX220-AC000-NEO2-X02",null,0,"端末一括購入代金：","RX220/LTEネオジムマグネットアンテナ×2本#有償保証(2年)"]
[null,"P00001448","RX220-AC000-NEO2-X03",null,0,"端末一括購入代金：","RX220/LTEネオジムマグネットアンテナ×2本#有償保証(3年)"]
[null,"P00001448","RX220-AC000-NEO2-X05",null,0,"端末一括購入代金：","RX220/LTEネオジムマグネットアンテナ×2本#有償保証(5年)"]
[null,"P00001448","RX220-AC000-MB2-X01",null,0,"端末一括購入代金：","RX220/MBアンテナ×2本#標準保証(1年)"]
[null,"P00001448","RX220-AC000-MB2-X02",null,0,"端末一括購入代金：","RX220/MBアンテナ×2本#有償保証(2年)"]
[null,"P00001448","RX220-AC000-MB2-X03",null,0,"端末一括購入代金：","RX220/MBアンテナ×2本#有償保証(3年)"]
[null,"P00001448","RX220-AC000-MB2-X05",null,0,"端末一括購入代金：","RX220/MBアンテナ×2本#有償保証(5年)"]
[null,"P00001448","RX220-AC000-MIM1-X01",null,0,"端末一括購入代金：","RX220/MIMOアンテナ×1本#標準保証(1年)"]
[null,"P00001448","RX220-AC000-MIM1-X02",null,0,"端末一括購入代金：","RX220/MIMOアンテナ×1本#有償保証(2年)"]
[null,"P00001448","RX220-AC000-MIM1-X03",null,0,"端末一括購入代金：","RX220/MIMOアンテナ×1本#有償保証(3年)"]
[null,"P00001448","RX220-AC000-MIM1-X05",null,0,"端末一括購入代金：","RX220/MIMOアンテナ×1本#有償保証(5年)"]
[null,"P00001448","RX220-AC020-ROD2-X01",null,0,"端末一括購入代金：","RX220 ACアダプタ付/LTEロッドアンテナ×2本#標準保証(1年)"]
[null,"P00001448","RX220-AC020-ROD2-X02",null,0,"端末一括購入代金：","RX220 ACアダプタ付/LTEロッドアンテナ×2本#有償保証(2年)"]
[null,"P00001448","RX220-AC020-ROD2-X03",null,0,"端末一括購入代金：","RX220 ACアダプタ付/LTEロッドアンテナ×2本#有償保証(3年)"]
[null,"P00001448","RX220-AC020-ROD2-X05",null,0,"端末一括購入代金：","RX220 ACアダプタ付/LTEロッドアンテナ×2本#有償保証(5年)"]
[null,"P00001448","RX220-AC020-NEO2-X01",null,0,"端末一括購入代金：","RX220 ACアダプタ付/LTEネオジムマグネットアンテナ×2本#標準保証(1年)"]
[null,"P00001448","RX220-AC020-NEO2-X02",null,0,"端末一括購入代金：","RX220 ACアダプタ付/LTEネオジムマグネットアンテナ×2本#有償保証(2年)"]
[null,"P00001448","RX220-AC020-NEO2-X03",null,0,"端末一括購入代金：","RX220 ACアダプタ付/LTEネオジムマグネットアンテナ×2本#有償保証(3年)"]
[null,"P00001448","RX220-AC020-NEO2-X05",null,0,"端末一括購入代金：","RX220 ACアダプタ付/LTEネオジムマグネットアンテナ×2本#有償保証(5年)"]
[null,"P00001448","RX220-AC020-MB2-X01",null,0,"端末一括購入代金：","RX220 ACアダプタ付/MBアンテナ×2本#標準保証(1年)"]
[null,"P00001448","RX220-AC020-MB2-X02",null,0,"端末一括購入代金：","RX220 ACアダプタ付/MBアンテナ×2本#有償保証(2年)"]
[null,"P00001448","RX220-AC020-MB2-X03",null,0,"端末一括購入代金：","RX220 ACアダプタ付/MBアンテナ×2本#有償保証(3年)"]
[null,"P00001448","RX220-AC020-MB2-X05",null,0,"端末一括購入代金：","RX220 ACアダプタ付/MBアンテナ×2本#有償保証(5年)"]
[null,"P00001448","RX220-AC020-MIM1-X01",null,0,"端末一括購入代金：","RX220 ACアダプタ付/MIMOアンテナ×1本#標準保証(1年)"]
[null,"P00001448","RX220-AC020-MIM1-X02",null,0,"端末一括購入代金：","RX220 ACアダプタ付/MIMOアンテナ×1本#有償保証(2年)"]
[null,"P00001448","RX220-AC020-MIM1-X03",null,0,"端末一括購入代金：","RX220 ACアダプタ付/MIMOアンテナ×1本#有償保証(3年)"]
[null,"P00001448","RX220-AC020-MIM1-X05",null,0,"端末一括購入代金：","RX220 ACアダプタ付/MIMOアンテナ×1本#有償保証(5年)"]
[null,"P00001448","A200-AC1AN0-X03",null,0,"端末一括購入代金：","MB-A200 ACアダプタ付#標準保証(3年)"]
[null,"P00001448","A200-AC1AN0-X05",null,0,"端末一括購入代金：","MB-A200 ACアダプタ付#有償保証(5年)"]
[null,"P00001448","A200-AC1AN0-Y03",null,0,"端末一括購入代金：","MB-A200 ACアダプタ付#有償保証/先出しセンドバック(3年)"]
[null,"P00001448","A200-AC1AN0-Y05",null,0,"端末一括購入代金：","MB-A200 ACアダプタ付#有償保証/先出しセンドバック(5年)"]
[null,"P00001448","A200-AC1AN1-X03",null,0,"端末一括購入代金：","MB-A200 ACアダプタ付/外部アンテナ1本#標準保証(3年)"]
[null,"P00001448","A200-AC1AN1-X05",null,0,"端末一括購入代金：","MB-A200 ACアダプタ付/外部アンテナ1本#有償保証(5年)"]
[null,"P00001448","A200-AC1AN1-Y03",null,0,"端末一括購入代金：","MB-A200 ACアダプタ付/外部アンテナ1本#有償保証/先出しセンドバック(3年)"]
[null,"P00001448","A200-AC1AN1-Y05",null,0,"端末一括購入代金：","MB-A200 ACアダプタ付/外部アンテナ1本#有償保証/先出しセンドバック(5年)"]
[null,"P00001448","A200-AC0AN0-X03",null,0,"端末一括購入代金：","MB-A200#標準保証(3年)"]
[null,"P00001448","A200-AC0AN0-X05",null,0,"端末一括購入代金：","MB-A200#有償保証(5年)"]
[null,"P00001448","A200-AC0AN0-Y03",null,0,"端末一括購入代金：","MB-A200#有償保証/先出しセンドバック(3年)"]
[null,"P00001448","A200-AC0AN0-Y05",null,0,"端末一括購入代金：","MB-A200#有償保証/先出しセンドバック(5年)"]
[null,"P00001448","IPC16LTE-VSD001064",null,0,"端末一括購入代金：","LTE対応カメラ(IPC-16LTE)/microSDカード(64GB)#オプションなし"]
[null,"P00001448","IPC16LTE-VSD001064-C1601",null,0,"端末一括購入代金：","LTE対応カメラ(IPC-16LTE)/microSDカード(64GB)#カード盗難防止カバー"]
[null,"P00001448","IPC16LTE-VSD001064-JBX1601",null,0,"端末一括購入代金：","LTE対応カメラ(IPC-16LTE)/microSDカード(64GB)#ジャンクションボックス"]
[null,"P00001448","IPC16LTE-VSD001064-C1601-JBX1601",null,0,"端末一括購入代金：","LTE対応カメラ(IPC-16LTE)/microSDカード(64GB)#カード盗難防止カバー+ジャンクションボックス"]
[null,"P00001448","IPC16LTE",null,0,"端末一括購入代金：","LTE対応カメラ(IPC-16LTE)※microSDカードお客様ご用意#オプションなし"]
[null,"P00001448","IPC16LTE-C1601",null,0,"端末一括購入代金：","LTE対応カメラ(IPC-16LTE)※microSDカードお客様ご用意#カード盗難防止カバー "]
[null,"P00001448","IPC16LTE-JBX1601",null,0,"端末一括購入代金：","LTE対応カメラ(IPC-16LTE)※microSDカードお客様ご用意#ジャンクションボックス"]
[null,"P00001448","IPC16LTE-C1601-JBX1601",null,0,"端末一括購入代金：","LTE対応カメラ(IPC-16LTE)※microSDカードお客様ご用意#カード盗難防止カバー+ジャンクションボックス"]
[null,"P00001454",null,null,{"$f":"IF('AtMOSInput(ReadOnly)'!B12=4,'(カード型)マルチキャリア料金表'!B14,IF('AtMOSInput(ReadOnly)'!B12=6,0,\"\"))","v":""},"事務手数料：",null,"※事務手数料の項目を利用するはず"]
[null,"P00001453",null,null,{"$f":"IF('AtMOSInput(ReadOnly)'!B12=4,'(カード型)マルチキャリア料金表'!B15,IF('AtMOSInput(ReadOnly)'!B12=6,0,\"\"))","v":""},"ＳＩＭ発行手数料"]
[null,"P00001463",null,null,{"$f":"IF('AtMOSInput(ReadOnly)'!B12=4,'(カード型)マルチキャリア料金表'!B16,IF('AtMOSInput(ReadOnly)'!B12=6,0,\"\"))","v":""},"配送費用"]
[null,"P00001455",null,null,0,"上りクーポン（１００ＭＢ）"]
[null,"P00001456",null,null,0,"上りクーポン（３００ＭＢ）"]
[null,"P00001457",null,null,0,"上りクーポン（５００ＭＢ）"]
[null,"P00001458",null,null,0,"上りクーポン（１ＧＢ）"]
[null,"P00001459",null,null,0,"標準クーポン（１００ＭＢ）"]
[null,"P00001460",null,null,0,"標準クーポン（３００ＭＢ）"]
[null,"P00001461",null,null,0,"標準クーポン（５００ＭＢ）"]
[null,"P00001462",null,null,0,"標準クーポン（１ＧＢ）"]
[null,"P00001450",null,null,0,"違約金：",null,"何を入力？"]
[null,"P00001470",null,null,0,"スタンダードタイプ標準プラン月額料金："]
[null,"P00001471",null,null,0,"スタンダードタイプ　１ＧＢプラン　月額料金"]
[null,"P00001472",null,null,0,"スタンダードタイプ　３ＧＢプラン　月額料金"]
[null,"P00001473",null,null,0,"スタンダードタイプ　５ＧＢプラン　月額料金"]
[null,"P00001474",null,null,0,"スタンダードタイプ　１０ＧＢプラン　月額料金"]
[null,"P00001475",null,null,0,"スタンダードタイプ　上り１ＧＢプラン　月額料金"]
[null,"P00001476",null,null,0,"スタンダードタイプ　上り３ＧＢプラン　月額料金"]
[null,"P00001477",null,null,0,"スタンダードタイプ　上り５ＧＢプラン　月額料金"]
[null,"P00001478",null,null,0,"スタンダードタイプ　上り１０ＧＢプラン　月額料金"]
[null,"P00001479",null,null,0,"スタンダードタイプライトプラン月額料金"]
[null,"P00001914",null,null,{"$f":"IF('AtMOSInput(ReadOnly)'!B12=4,'(カード型)マルチキャリア料金表'!B20,IF('AtMOSInput(ReadOnly)'!B12=6,'(チップ型)マルチキャリア料金表'!B21,\"\"))","v":""},"マルチキャリアタイプ従量プラン月額料金"]
[null,"P00001483",null,null,0,"ＳＭＳ機能オプション利用料：",null,"3GとLTEで分かれているがどうするか"]
[null,"P00001484",null,null,{"$f":"IF('AtMOSInput(ReadOnly)'!B12=4,'(カード型)マルチキャリア料金表'!B34,IF('AtMOSInput(ReadOnly)'!B12=6,'(チップ型)マルチキャリア料金表'!B35,\"\"))","v":""},"グローバルＩＰオプション："]
[null,"P00001466",null,null,0,"国内通話料・国内ＳＭＳ利用料（課税）",null,"ドコモからの請求がそのままかと思ってますが、変更させる？"]
[null,"P00001467",null,null,0,"国際通話料・国際ＳＭＳ利用料（非課税）",null,"利用シーンにより単価が異なると思うけど何を入れる？"]
[null,"P00001464",null,null,0,"スタンダードタイプ通信料：",null,"不要であってる？"]
[null,"P00001469",null,null,0,"ＳＩＭカード再発行・形状変更"]
[null,"P00001563",null,null,0,"スタンダードタイプ　上り３０ＧＢプラン　月額料金"]
[null,"P00001564",null,null,0,"スタンダードタイプ　上り５０ＧＢプラン　月額料金"]
[null,"P00001566",null,null,0,"スタンダードタイプ　上り２００ＧＢプラン　月額料金"]
[null,"P00001567",null,null,0,"スタンダードタイプ　バックアッププラン　月額料金",null,"バックアッププランは専用申込書のため0固定"]
[null,"P00001724",null,null,0,"スタンダードタイプ ２０ＧＢプラン 月額料金"]
[null,"P00001725",null,null,0,"スタンダードタイプ ３０ＧＢプラン 月額料金"]
[null,"P00001726",null,null,0,"スタンダードタイプ ５０ＧＢプラン 月額料金"]
[null,"P00001727",null,null,0,"スタンダードタイプ 休止プラン 月額料金"]
[null,"P00001907",null,null,{"$f":"IF('AtMOSInput(ReadOnly)'!B12=4,'(カード型)マルチキャリア料金表'!B24,IF('AtMOSInput(ReadOnly)'!B12=6,'(チップ型)マルチキャリア料金表'!B25,\"\"))","v":""},"マルチキャリア国内通信料",null,"MB単価"]
[null,"P00001908",null,null,{"$f":"IF('AtMOSInput(ReadOnly)'!B12=4,'(カード型)マルチキャリア料金表'!B25,IF('AtMOSInput(ReadOnly)'!B12=6,'(チップ型)マルチキャリア料金表'!B26,\"\"))","v":""},"マルチキャリア海外グループ１通信料",null,"MB単価"]
[null,"P00001909",null,null,{"$f":"IF('AtMOSInput(ReadOnly)'!B12=4,'(カード型)マルチキャリア料金表'!B26,IF('AtMOSInput(ReadOnly)'!B12=6,'(チップ型)マルチキャリア料金表'!B27,\"\"))","v":""},"マルチキャリア海外グループ２通信料",null,"MB単価"]
[null,"P00001910",null,null,{"$f":"IF('AtMOSInput(ReadOnly)'!B12=4,'(カード型)マルチキャリア料金表'!B27,IF('AtMOSInput(ReadOnly)'!B12=6,'(チップ型)マルチキャリア料金表'!B28,\"\"))","v":""},"マルチキャリア海外グループ３通信料",null,"MB単価"]
[null,"P00001911",null,null,{"$f":"IF('AtMOSInput(ReadOnly)'!B12=4,'(カード型)マルチキャリア料金表'!B28,IF('AtMOSInput(ReadOnly)'!B12=6,'(チップ型)マルチキャリア料金表'!B29,\"\"))","v":""},"マルチキャリア海外グループ４通信料",null,"MB単価"]
[null,"P00001912",null,null,{"$f":"IF('AtMOSInput(ReadOnly)'!B12=4,'(カード型)マルチキャリア料金表'!B29,IF('AtMOSInput(ReadOnly)'!B12=6,'(チップ型)マルチキャリア料金表'!B30,\"\"))","v":""},"マルチキャリア海外グループ５通信料",null,"MB単価"]
[null,"P00001913",null,null,{"$f":"IF('AtMOSInput(ReadOnly)'!B12=4,'(カード型)マルチキャリア料金表'!B30,IF('AtMOSInput(ReadOnly)'!B12=6,'(チップ型)マルチキャリア料金表'!B31,\"\"))","v":""},"マルチキャリア海外グループ６通信料",null,"MB単価"]
[null,"P00001565",null,null,0,"スタンダードタイプ　上り１００ＧＢプラン　月額料金"]
[null,"P00001448","A130-AC1AN0-X03",null,"0","端末一括購入代金：","MB-A130 ACアダプタ付#標準保証(3年)"]
[null,"P00001448","A130-AC1AN0-X05",null,"0","端末一括購入代金：","MB-A130 ACアダプタ付#有償保証(5年)"]
[null,"P00001448","A130-AC1AN0-Y03",null,"0","端末一括購入代金：","MB-A130 ACアダプタ付#有償保証/先出しセンドバック(3年)"]
[null,"P00001448","A130-AC1AN0-Y05",null,"0","端末一括購入代金：","MB-A130 ACアダプタ付#有償保証/先出しセンドバック(5年)"]
[null,"P00001448","A130-AC1AN1-X03",null,"0","端末一括購入代金：","MB-A130 ACアダプタ付/外部アンテナ1本#標準保証(3年)"]
[null,"P00001448","A130-AC1AN1-X05",null,"0","端末一括購入代金：","MB-A130 ACアダプタ付/外部アンテナ1本#有償保証(5年)"]
[null,"P00001448","A130-AC1AN1-Y03",null,"0","端末一括購入代金：","MB-A130 ACアダプタ付/外部アンテナ1本#有償保証/先出しセンドバック(3年)"]
[null,"P00001448","A130-AC1AN1-Y05",null,"0","端末一括購入代金：","MB-A130 ACアダプタ付/外部アンテナ1本#有償保証/先出しセンドバック(5年)"]
[null,"P00001480",null,null,"0","スタンダードタイプ 従量プラン 月額料金"]
[null,"P00002113",null,null,"0","スタンダードタイプ チップSIM維持料金"]
[null,"P00002115",null,null,"0","マルチキャリアタイプ チップSIM維持料金"]
[null,"P00001447",null,"IPC-16LTE","0","ＷｉＦｉキッティングオプション："]
[null,"P00001447",null,"MB-A100","0","ＷｉＦｉキッティングオプション："]
[null,"P00001447",null,"MB-A110","0","ＷｉＦｉキッティングオプション："]
[null,"P00001447",null,"MB-A130","0","ＷｉＦｉキッティングオプション："]
[null,"P00001447",null,"MB-A200","0","ＷｉＦｉキッティングオプション："]
[null,"P00001447",null,"MR03LN/WiFi(SL)","0","ＷｉＦｉキッティングオプション："]
[null,"P00001447",null,"MR04LN(CDL)/WiFi(SL)","0","ＷｉＦｉキッティングオプション："]
[null,"P00001447",null,"MR04LN/WiFi(SL)","0","ＷｉＦｉキッティングオプション："]
[null,"P00001447",null,"MR05LN(CDL)/WiFi(SL)","0","ＷｉＦｉキッティングオプション："]
[null,"P00001447",null,"MR05LN/WiFi(SL)","0","ＷｉＦｉキッティングオプション："]

{"sheet":"リスト","index":7,"n_rows":7,"n_cols":1,"rows_kept":7,"cut":false,"hidden":true,"merged":[]}
["IPアドレス帯"]
["5台(/29)"]
["13台(/28)"]
["29台(/27)"]
["61台(/26)"]
["125台(/25)"]
["253台(/24)"]

{"sheet":"重要事項説明書","index":8,"n_rows":265,"n_cols":23,"rows_kept":265,"cut":false,"hidden":false,"merged":[[252,16,254,16],[257,5,258,5],[257,6,258,6],[257,15,258,15],[257,16,258,16],[251,4,255,4],[251,14,255,14],[252,5,254,5],[252,6,254,6],[252,15,254,15],[221,16,223,16],[238,10,239,10],[241,4,242,4],[241,14,242,14],[243,4,250,4],[243,14,250,14],[245,5,248,5],[245,6,248,6],[245,15,248,15],[245,16,248,16],[220,4,223,4],[220,14,223,14],[221,5,223,5],[221,6,223,6],[221,15,223,15],[208,15,211,15],[208,16,211,16],[214,4,219,4],[214,14,219,14],[215,5,216,5],[215,6,216,6],[215,15,216,15],[215,16,216,16],[202,10,203,10],[205,4,206,4],[205,14,206,14],[207,4,213,4],[207,14,213,14],[208,5,211,5],[208,6,211,6],[176,16,179,16],[183,4,186,4],[183,14,186,14],[184,5,186,5],[184,6,186,6],[184,15,186,15],[184,16,186,16],[174,4,182,4],[174,14,182,14],[176,5,179,5],[176,6,179,6],[176,15,179,15],[152,15,156,15],[152,16,156,16],[169,10,170,10],[172,4,173,4],[172,14,173,14],[2,2,2,14],[125,3,128,3],[145,4,150,4],[145,14,150,14],[151,4,156,4],[151,14,156,14],[152,5,156,5],[152,6,156,6]]}
[]
[]
[null,null,"InfoSphereモバイルマルチキャリアタイプ重要事項説明書"]
[]
[]
[null,null,"本書はご提供条件のうち、特に重要な事項、及びご利用上の注意事項をご案内しております。"]
[null,null,"内容をご一読の上、お申し込みください。"]
[null,null,"また、本ご提供条件はお客さまが弊社の提供するカスタマーコンソールからお申込みになる全てのSIM・端末およびオプションサービスに適用されます。"]
[]
[null,null,"＜サービス内容＞"]
[null,null,"IoT用途でのご利用を前提とした国際ローミングSIMを利用したモバイルデータ通信サービスです。"]
[null,null,"「SIM 単体」をNTTPC よりご提供します。"]
[]
[null,null,"●サービスタイプ"]
[null,null,"　(1) マルチキャリアタイプ"]
[null,null,"　　　国際ローミングSIMを利用し、接続先ネットワークをMaster's ONE IP-VPN とする閉域型モバイルアクセス。"]
[]
[null,null,"●モバイル回線"]
[null,null,"　　国際ローミングSIMに対応した端末で利用でき、提携する国際ローミング事業者が提供可能なエリアに準じてご利用いただけます。"]
[null,null,"　　利用可能エリアご案内URL:"]
[]
[null,null,"● SIM のご提供について"]
[null,null,"　・ご利用予定端末に関する国内認証機関の承認情報をご提出頂く場合があります。"]
[]
[null,null,"<端末アドレスについて>"]
[null,null,"予約された端末アドレスが長期間払い出されない場合は、予約済みIPアドレスの数またはIPアドレスそのものを変更する場合があります。"]
[]
[null,null,"＜通信速度、通信遅延について＞"]
[null,null,"通信速度、通信遅延はベストエフォートです。日本国内での利用を含め、お客様のご利用される国、エリア、利用環境、回線の混雑状況、"]
[null,null,"ご利用時間帯によっては大幅に低下することがあります。"]
[]
[null,null,"＜故障対応について＞"]
[null,null,"回線の故障復旧対応は、国際ローミング事業者の提供条件(原則、現地平日9時～17時)に則ります。また国際ローミング事業者や"]
[null,null,"国内・海外キャリア(MNO)の故障対応状況により、回線の復旧対応に時間を要する場合があります。"]
[]
[null,null,"＜サービス提供エリアと価格の変更について＞"]
[null,null,"本サービスのサービス提供エリア(国・地域)は国際ローミング事業者の提供エリア(国・地域)の変更に伴い、"]
[null,null,"提供する国・地域を削除もしくは追加し、価格を変更することがあります。"]
[null,null,"サービスエリアの変更もしくは価格を変更する場合には、1ヶ月前を目途としてお客様に通知します。"]
[]
[null,null,"＜大量データ送信者に対する利用の制限について＞"]
[null,null,"お客様の通信品質の確保・ネットワーク帯域利用の公平性確保を目的として、"]
[null,null,"当社所定の基準に基づき、連続的かつ大量の通信を行う一部のお客様通信の利用を下記のとおり制限します。"]
[]
[null,null,"<全プラン共通>"]
[null,null,"１．網全体が混雑状態となった際に、サービスご利用の公平性確保や混雑状態の早期解消を目的とした通信速度制限を実施する場合があります。"]
[null,null,"　　　混雑状態が解消されると通信速度制限も解除されます。"]
[null,null,"２．Windows® アップデートのご利用につきましては、ご利用速度を一定値に制限します。"]
[null,null,"３．長時間通信に対する通信断は実施しておりませんが、今後変更される場合があります。"]
[]
[null,null,"＜最大同時PDP接続認証要求数について＞"]
[null,null,"最大同時接続認証に制限がかかる場合がありますので、タイマーなどにより複数台の端末から一斉にPDP接続認証を行う場合は、タイマーの設定に配慮"]
[null,null,"を頂けますようお願いします。"]
[]
[null,null,"＜利用期間について＞"]
[null,null,"本サービスの最低利用期間はありません。"]
[null,null,"ただし、最低利用期間及び最低利用期間満了前の契約解除に伴う違約金を個別に定めた場合（見積書等において当社より"]
[null,null,"個別に提示した場合を含みます）にはこれによるものとします。"]
[]
[null,null,"＜SIMの故障に関する注意事項＞"]
[null,null,"別紙1に記載の通りです。必ず一読の上、内容の理解・承諾をお願いいたします。"]
[]
[null,null,"＜ご請求について＞"]
[null,null,"月初～月末を料金月として、開通翌月のご利用分よりご請求させて頂きます。"]
[null,null,"基本サービス月額料金については開通月無料、解約月満額請求となります。"]
[null,null,"尚、従量料金は開通月のご利用分よりご請求致します。"]
[]
[null,null,"＜本契約の解除について＞"]
[null,null,"・SIMの解約はお客さまにてカスタマーコンソールより解約処理を実施してください。解約希望日は、申込時点より2日後から翌月末まで選択可能です。"]
[null,null,"・ご利用料金は、契約解除日を含む当月分を満額でご請求させて頂きます。"]
[null,null,"・通信端末及びSIMカードはスタンダードタイプの場合はお客様負担にて当社指定の場所へご返却頂き、マルチキャリアタイプの場合はお客様にて破棄頂きます。"]
[null,null,"　未返却の場合は違約金をご請求させて頂く場合があります。"]
[]
[null,null,"＜その他＞"]
[null,null,"本書に記載のない事項については、「Master’sONE利用規約」「サービス仕様書」に準じるものとします。"]
[]
[null,null,"＜お問い合わせ先＞"]
[null,null,"NTTPCコミュニケーションズ 総合窓口"]
[null,null,"電話：050-3146-6683"]
[null,null,"受付時間：10:30～12:00、13：00～16：30（土日祝日・年末年始を除く）"]
[null,null,"※ナビダイヤルでおつなぎします"]
[]
[]
[null,null,"この提供条件説明書は、2022年2月8日現在の提供条件を説明したものであり、利用規約の改定等"]
[null,null,"により、提供条件が変更になる場合があります。"]
[]
[null,null,null,null,null,null,null,null,null,null,null,null,null,null,"以上"]
[]
[null,null,"--- 別紙1ここから ---"]
[null,null,"別紙1：SIMの初期不良に関する対応について"]
[]
[null,null,"■SIM初期不良発生時のサービスポリシー"]
[null,null,null,"お客さまが開通したSIMに初期不良が発生した場合、対象のSIMに関わる料金を、NTTPC社による初期不良認定後のお客さま請求から相殺します。"]
[null,null,null,"相殺する対象月のお客さま請求額が相殺額に満たない場合は、別途調整の上、返金します。"]
[null,null,null,"　※相殺（または返金）される料金の対象は下記「■相殺（または返金）される料金の対象」を参照してください。"]
[]
[null,null,null,"【注意点】"]
[null,null,null,"初期不良に該当するSIMは開通日より暦月で1か月以内のものに限ります。"]
[null,null,null,"1か月以上経過したSIMの故障は相殺（または返金）の対象となりません。"]
[null,null,null,"　※詳細な条件は下記「■SIM初期不良に該当する条件」を参照してください。"]
[]
[]
[null,null,"■SIM初期不良に該当する条件"]
[null,null,null,"以下の項目をすべて満たしていることが初期不良の条件になります。"]
[null,null,null,"　・対象SIMの開通日より暦月で1か月以内に、お客さまよりNTTPC社のカスタマフロントへ故障疑いの申告があった"]
[null,null,null,"　・お客さまが対象SIMをNTTPC社の故障解析担当へ送付し、上記申告から14日以内に着荷した"]
[null,null,null,"　・NTTPC社の故障解析担当の故障判定の結果、対象SIMが「故障」と判定された"]
[null,null,null,"　・NTTPC社の故障判定通知の前にお客さまは対象SIMの解約を行わない（NTTPC社の故障解析ができなくなるため）"]
[]
[]
[null,null,"■相殺（または返金）される料金の対象"]
[null,null,null,"[初期費用]"]
[null,null,null,"　・事務手数料"]
[null,null,null,"　・SIM発行手数料"]
[null,null,null,"[月額費用]"]
[null,null,null,"　・マルチキャリアタイプ従量プラン月額料金　または　違約金または月額料金（残額）"]
[null,null,null,"　※上記月額費用のどちらが対象になるかはケースによって異なります。下記「■フローケース」を参照してください。"]
[]
[null,null,null,"【注意点】"]
[null,null,null,"対象SIMに関わる　「配送費用」　、および対象SIMが故障前に発生した通信量　「マルチキャリア国内通信料」、「マルチキャリア海外グループ１～6通信料」　は相殺（または返金）の対象外です。"]
[null,null,null,"月額費用はひと月分を相殺するケースとふた月分を相殺するケースがあります。"]
[null,null,null,"　※詳細は下記「■フローケース」を参照してください。"]
[]
[]
[null,null,"■SIM初期不良による料金相殺（または返金）に必要なアクションと期限"]
[null,null,null,"お客さま","対象SIMの開通日から暦月で1か月以内にNTTPC社カスタマフロントへ故障申告を行う"]
[null,null,null,null,"上記故障申告から14日以内にNTTPC社故障解析担当に着荷するように対象SIMを送付する"]
[null,null,null,null,"NTTPC社の故障判定の結果、「故障」と通知のあった同じ月内末日2日前までに対象SIMをカスタマコンソールで解約する"]
[null,null,null,null," →NTTPC社による故障解析ができなくなるため、故障判定結果通知の前に解約をしないでください"]
[]
[null,null,null,"【注意点】"]
[null,null,null,"上記記載の各アクションを期限内に実施しない場合、月額費用が多くかかることになり、本サービス規定の相殺額では相殺しきれなくなります。"]
[null,null,null,"多くかかった分の月額費用に関しては相殺の対象外となりますのでご注意ください。"]
[null,null,null,"　※詳細は下記「■フローケース」を参照してください。"]
[]
[]
[null,null,"■フローケース"]
[null,null,null,"同月内解約フロー"]
[null,null,null,"お客さまによる対象SIMの開通、　NTTPC社の故障判定、　お客さまによる対象SIMの解約　の全てが同月に実施された場合、以下の費用が相殺対象となります。"]
[null,null,null,"　"]
[null,null,null,null,"N月1日開通の場合（初月から月額費用が有料）",null,null,null,null,null,null,null,null,null,"N月2日以降開通の場合（初月は月額費用が無料、ただし初月解約の場合は違約金あり）"]
[null,null,null,null,"・事務手数料",null,null,null,null,null,null,null,null,null,"・事務手数料"]
[null,null,null,null,"・SIM発行手数料",null,null,null,null,null,null,null,null,null,"・SIM発行手数料"]
[null,null,null,null,"・マルチキャリアタイプ従量プラン月額料金 N月分",null,null,null,null,null,null,null,null,null,"・違約金または月額料金（残額） N月分"]
[]
[null,null,null,null,"N月","1日","お客さま","SIM開通",null,null,null,null,null,null,"N月","2日以降","お客さま","SIM開通"]
[null,null,null,null,null,"a日","お客さま","NTTPC社カスタマフロントへ故障疑い申告",null,null,null,null,null,null,null,"a日","お客さま","NTTPC社カスタマフロントへ故障疑い申告"]
[null,null,null,null,null,"b日","お客さま","NTTPC社故障解析担当へ対象SIMを送付",null,null,null,null,null,null,null,"b日","お客さま","NTTPC社故障解析担当へ対象SIMを送付"]
[null,null,null,null,null,"15日頃","NTTPC","故障解析・判定結果「故障」",null,null,null,null,null,null,null,"15日頃","NTTPC","故障解析・判定結果「故障」"]
[null,null,null,null,null,"c日","NTTPC","お客さまへ故障結果通知",null,null,null,null,null,null,null,"c日","NTTPC","お客さまへ故障結果通知"]
[null,null,null,null,null,"d日 ※1","お客さま","カスタマコンソールで対象SIMを解約",null,null,null,null,null,null,null,"d日 ※1","お客さま","カスタマコンソールで対象SIMを解約"]
[null,null,null,null,"N+1月","初旬","NTTPC","N月利用分請求〆、対象SIMの調整金（相殺額）を登録",null,null,null,null,null,null,"N+1月","初旬","NTTPC","N月利用分請求〆、対象SIMの調整金（相殺額）を登録"]
[null,null,null,null,null,"中旬","NTTPC","お客さまへN月利用分を請求（請求項目は下記）",null,null,null,null,null,null,null,"中旬","NTTPC","お客さまへN月利用分を請求（請求項目は下記）"]
[null,null,null,null,null,null,null,"　・事務手数料",null,null,null,null,null,null,null,null,null,"　・事務手数料"]
[null,null,null,null,null,null,null,"　・SIM発行手数料",null,null,null,null,null,null,null,null,null,"　・SIM発行手数料"]
[null,null,null,null,null,null,null,"　・マルチキャリアタイプ従量プラン月額料金 N月分",null,null,null,null,null,null,null,null,null,"　・違約金または月額料金（残額） N月分"]
[null,null,null,null,null,null,null,"　・調整金 ※2",null,null,null,null,null,null,null,null,null,"　・調整金 ※3"]
[]
[null,null,null,null,"※1：末日マイナス2日前まで（例：1月なら1/29まで、閏年以外の2月なら2/26まで、4月なら4/28まで）"]
[null,null,null,null,"※2：[事務手数料]＋[SIM発行手数料]＋[マルチキャリアタイプ従量プラン月額料金 N月分] の合計マイナス値"]
[null,null,null,null,"※3：[事務手数料]＋[SIM発行手数料]＋[違約金または月額料金（残額） N月分] の合計マイナス値"]
[]
[]
[null,null,null,"開通翌月解約フロー"]
[null,null,null,"お客さまによる対象SIMの開通がN月、　NTTPC社の故障判定・お客さまによる対象SIMの解約　がN+1月（開通月翌月）に実施された場合、以下の費用が相殺対象となります。"]
[]
[null,null,null,null,"N月1日開通の場合（初月から月額費用が有料）",null,null,null,null,null,null,null,null,null,"N月2日以降開通の場合（初月は月額費用が無料）"]
[null,null,null,null,"・事務手数料",null,null,null,null,null,null,null,null,null,"・事務手数料"]
[null,null,null,null,"・SIM発行手数料",null,null,null,null,null,null,null,null,null,"・SIM発行手数料"]
[null,null,null,null,"・マルチキャリアタイプ従量プラン月額料金 N月分",null,null,null,null,"→","（ふた月分）",null,null,null,"・マルチキャリアタイプ従量プラン月額料金 N+1月分"]
[null,null,null,null,"・マルチキャリアタイプ従量プラン月額料金 N+1月分",null,null,null,null,"→"]
[]
[null,null,null,null,"N月","1日","お客さま","SIM開通",null,null,null,null,null,null,"N月","2日以降","お客さま","SIM開通"]
[null,null,null,null,null,"末日","お客さま","NTTPC社カスタマフロントへ故障疑い申告",null,null,null,null,null,null,null,"末日","お客さま","NTTPC社カスタマフロントへ故障疑い申告"]
[null,null,null,null,"N+1月","初旬","NTTPC","N月利用分請求〆",null,null,null,null,null,null,"N+1月","初旬","NTTPC","N月利用分請求〆"]
[null,null,null,null,null,"a日","お客さま","NTTPC社故障解析担当へ対象SIMを送付",null,null,null,null,null,null,null,"a日","NTTPC","NTTPC社故障解析担当へ対象SIMを送付"]
[null,null,null,null,null,"中旬","NTTPC","お客さまへN月利用分を請求（請求項目は下記）",null,null,null,null,null,null,null,"中旬","NTTPC","お客さまへN月利用分を請求（請求項目は下記）"]
[null,null,null,null,null,null,null,"　・事務手数料",null,null,null,null,null,null,null,null,null,"　・事務手数料"]
[null,null,null,null,null,null,null,"　・SIM発行手数料",null,null,null,null,null,null,null,null,null,"　・SIM発行手数料"]
[null,null,null,null,null,null,null,"　・マルチキャリアタイプ従量プラン月額料金 N月分",null,null,null,null,null,null,null,null,null,"　・マルチキャリアタイプ従量プラン月額料金 N月分　（初月無料）"]
[null,null,null,null,null,"15日頃","NTTPC","故障解析・判定結果「故障」",null,null,null,null,null,null,null,"15日頃","NTTPC","故障解析・判定結果「故障」"]
[null,null,null,null,null,"b日","NTTPC","お客さまへ故障結果通知",null,null,null,null,null,null,null,"b日","NTTPC","お客さまへ故障結果通知"]
[null,null,null,null,null,"c日 ※1","お客さま","カスタマコンソールで対象SIMを解約",null,null,null,null,null,null,null,"c日 ※1","お客さま","カスタマコンソールで対象SIMを解約"]
[null,null,null,null,"N+2月","初旬","NTTPC","N+1月利用分請求〆、対象SIMの調整金（相殺額）を登録",null,null,null,null,null,null,"N+2月","初旬","NTTPC","N+1月利用分請求〆、対象SIMの調整金（相殺額）を登録"]
[null,null,null,null,null,"中旬","NTTPC","お客さまへN+1月利用分を請求（請求項目は下記）",null,null,null,null,null,null,null,"中旬","NTTPC","お客さまへN+1月利用分を請求（請求項目は下記）"]
[null,null,null,null,null,null,null,"　・マルチキャリアタイプ従量プラン月額料金 N+1月分",null,null,null,null,null,null,null,null,null,"　・マルチキャリアタイプ従量プラン月額料金 N+1月分"]
[null,null,null,null,null,null,null,"　・調整金 ※4",null,null,null,null,null,null,null,null,null,"　・調整金 ※5"]
[]
[null,null,null,null,"※4：[事務手数料]＋[SIM発行手数料]＋[マルチキャリアタイプ従量プラン月額料金 N月分]＋[マルチキャリアタイプ従量プラン月額料金 N+1月分] の合計マイナス値"]
[null,null,null,null,"※5：[事務手数料]＋[SIM発行手数料]＋[マルチキャリアタイプ従量プラン月額料金 N+1月分] の合計マイナス値"]
[]
[]
[null,null,null,"余計な月額費用がかかってしまう例"]
[null,null,null,"前述の「■SIM初期不良による料金相殺（または返金）に必要なアクションと期限」に記載のお客さまアクションと期限を守れない場合、本サービス既定の相殺額では相殺できず、月額費用が余分に請求されることになります。"]
[null,null,null,"余分に請求された月額費用は相殺の対象外となります。"]
[null,null,null,"※以下は一部の例で全てのケースを網羅しているわけではありませんのでご注意ください。"]
[]
[null,null,null,null,"例1：開通翌月解約ケースにおいて、故障疑い申告後14日以内にNTTPC社故障解析担当へ着荷するように対象SIM送付しなかった"]
[]
[null,null,null,null,"N月1日開通の場合（初月から月額費用が有料）の相殺対象請求項目",null,null,null,null,null,null,null,null,null,"N月2日以降開通の場合（初月は月額費用が無料）の相殺対象請求項目"]
[null,null,null,null,"・事務手数料",null,null,null,null,null,null,null,null,null,"・事務手数料"]
[null,null,null,null,"・SIM発行手数料",null,null,null,null,null,null,null,null,null,"・SIM発行手数料"]
[null,null,null,null,"・マルチキャリアタイプ従量プラン月額料金 N月分",null,null,null,null,"→","（ふた月分）",null,null,null,"・マルチキャリアタイプ従量プラン月額料金 N+1月分"]
[null,null,null,null,"・マルチキャリアタイプ従量プラン月額料金 N+1月分",null,null,null,null,"→"]
[]
[null,null,null,null,"N月","1日","お客さま","SIM開通",null,null,null,null,null,null,"N月","2日以降","お客さま","SIM開通"]
[null,null,null,null,null,"末日","お客さま","NTTPC社カスタマフロントへ故障疑い申告",null,null,null,null,null,null,null,"末日","お客さま","NTTPC社カスタマフロントへ故障疑い申告"]
[null,null,null,null,"N+1月","初旬","NTTPC","N月利用分請求〆",null,null,null,null,null,null,"N+1月","初旬","NTTPC","N月利用分請求〆"]
[null,null,null,null,null,"中旬","NTTPC","お客さまへN月利用分を請求（請求項目は下記）",null,null,null,null,null,null,null,"中旬","NTTPC","お客さまへN月利用分を請求（請求項目は下記）"]
[null,null,null,null,null,null,null,"　・事務手数料",null,null,null,null,null,null,null,null,null,"　・事務手数料"]
[null,null,null,null,null,null,null,"　・SIM発行手数料",null,null,null,null,null,null,null,null,null,"　・SIM発行手数料"]
[null,null,null,null,null,null,null,"　・マルチキャリアタイプ従量プラン月額料金 N月分",null,null,null,null,null,null,null,null,null,"　・マルチキャリアタイプ従量プラン月額料金 N月分　（初月無料）"]
[null,null,null,null,null,"15日頃","NTTPC","故障解析",null,null,null,null,null,null,null,"15日頃","NTTPC","故障解析"]
[null,null,null,null,null,"25日","お客さま","NTTPC社故障解析担当へ対象SIMを送付",null,null,null,"※6",null,null,null,"25日","お客さま","NTTPC社故障解析担当へ対象SIMを送付",null,null,null,"※6"]
[null,null,null,null,"N+2月","初旬","NTTPC","N+1月利用分請求〆",null,null,null,null,null,null,"N+2月","初旬","NTTPC","N+1月利用分請求〆"]
[null,null,null,null,null,"中旬","NTTPC","お客さまへN+1月利用分を請求（請求項目は下記）",null,null,null,null,null,null,null,"中旬","NTTPC","お客さまへN+1月利用分を請求（請求項目は下記）"]
[null,null,null,null,null,null,null,"　・マルチキャリアタイプ従量プラン月額料金 N+1月分",null,null,null,null,null,null,null,null,null,"　・マルチキャリアタイプ従量プラン月額料金 N+1月分"]
[null,null,null,null,null,"15日頃","NTTPC","故障解析・判定結果「故障」",null,null,null,"※7",null,null,null,"15日頃","NTTPC","故障解析・判定結果「故障」",null,null,null,"※7"]
[null,null,null,null,null,"a日","NTTPC","お客さまへ故障結果通知",null,null,null,null,null,null,null,"a日","NTTPC","お客さまへ故障結果通知"]
[null,null,null,null,null,"b日 ※1","お客さま","カスタマコンソールで対象SIMを解約",null,null,null,null,null,null,null,"b日 ※1","お客さま","カスタマコンソールで対象SIMを解約"]
[null,null,null,null,"N+3月","初旬","NTTPC","N+2月利用分請求〆、対象SIMの調整金（相殺額）を登録",null,null,null,null,null,null,"N+3月","初旬","NTTPC","N+2月利用分請求〆、対象SIMの調整金（相殺額）を登録"]
[null,null,null,null,null,"中旬","NTTPC","お客さまへN+2月利用分を請求（請求項目は下記）",null,null,null,null,null,null,null,"中旬","NTTPC","お客さまへN+2月利用分を請求（請求項目は下記）"]
[null,null,null,null,null,null,null,"　・マルチキャリアタイプ従量プラン月額料金 N+2月分",null,null,null,null,null,null,null,null,null,"　・マルチキャリアタイプ従量プラン月額料金 N+2月分"]
[null,null,null,null,null,null,null,"　・調整金 ※8",null,null,null,null,null,null,null,null,null,"　・調整金 ※9"]
[]
[null,null,null,null,"※6：N+1月実施のNTTPC社故障解析に間に合わない"]
[null,null,null,null,"※7：N+2月実施のNTTPC社故障解析で「故障」と判定"]
[null,null,null,null,"※8：[事務手数料]＋[SIM発行手数料]＋[マルチキャリアタイプ従量プラン月額料金 N月分]＋[マルチキャリアタイプ従量プラン月額料金 N+1月分] の合計マイナス値"]
[null,null,null,null,null,"→　本サービス規定により、上記対象ケースにおいてはふた月分の月額費用が相殺対象のため、「マルチキャリアタイプ従量プラン月額料金 N+2月分」が相殺されない"]
[null,null,null,null,"※9：[事務手数料]＋[SIM発行手数料]＋[マルチキャリアタイプ従量プラン月額料金 N+1月分] の合計マイナス値"]
[null,null,null,null,null,"→　本サービス規定により、上記対象ケースにおいてはひと月分の月額費用が相殺対象のため、「マルチキャリアタイプ従量プラン月額料金 N+2月分」が相殺されない"]
[]
[]
[null,null,null,null,"例2：開通翌月解約ケースにおいて、NTTPC社故障通知の同月にカスタマコンソールで対象SIMの解約をしなかった"]
[]
[null,null,null,null,"N月1日開通の場合（初月から月額費用が有料）の相殺対象請求項目",null,null,null,null,null,null,null,null,null,"N月2日以降開通の場合（初月は月額費用が無料）の相殺対象請求項目"]
[null,null,null,null,"・事務手数料",null,null,null,null,null,null,null,null,null,"・事務手数料"]
[null,null,null,null,"・SIM発行手数料",null,null,null,null,null,null,null,null,null,"・SIM発行手数料"]
[null,null,null,null,"・マルチキャリアタイプ従量プラン月額料金 N月分",null,null,null,null,"→","（ふた月分）",null,null,null,"・マルチキャリアタイプ従量プラン月額料金 N+1月分"]
[null,null,null,null,"・マルチキャリアタイプ従量プラン月額料金 N+1月分",null,null,null,null,"→"]
[]
[null,null,null,null,"N月","1日","お客さま","SIM開通",null,null,null,null,null,null,"N月","2日以降","お客さま","SIM開通"]
[null,null,null,null,null,"末日","お客さま","NTTPC社カスタマフロントへ故障疑い申告",null,null,null,null,null,null,null,"末日","お客さま","NTTPC社カスタマフロントへ故障疑い申告"]
[null,null,null,null,"N+1月","初旬","NTTPC","N月利用分請求〆",null,null,null,null,null,null,"N+1月","初旬","NTTPC","N月利用分請求〆"]
[null,null,null,null,null,"a日","お客さま","NTTPC社故障解析担当へ対象SIMを送付",null,null,null,null,null,null,null,"a日","お客さま","NTTPC社故障解析担当へ対象SIMを送付"]
[null,null,null,null,null,"中旬","NTTPC","お客さまへN月利用分を請求（請求項目は下記）",null,null,null,null,null,null,null,"中旬","NTTPC","お客さまへN月利用分を請求（請求項目は下記）"]
[null,null,null,null,null,null,null,"　・事務手数料",null,null,null,null,null,null,null,null,null,"　・事務手数料"]
[null,null,null,null,null,null,null,"　・SIM発行手数料",null,null,null,null,null,null,null,null,null,"　・SIM発行手数料"]
[null,null,null,null,null,null,null,"　・マルチキャリアタイプ従量プラン月額料金 N月分",null,null,null,null,null,null,null,null,null,"　・マルチキャリアタイプ従量プラン月額料金 N月分　（初月無料）"]
[null,null,null,null,null,"15日頃","NTTPC","故障解析・判定結果「故障」",null,null,null,null,null,null,null,"15日頃","NTTPC","故障解析・判定結果「故障」"]
[null,null,null,null,null,"b日","NTTPC","お客さまへ故障結果通知",null,null,null,null,null,null,null,"b日","NTTPC","お客さまへ故障結果通知"]
[null,null,null,null,"N+2月","初旬","NTTPC","N+1月利用分請求〆、対象SIMの調整金（相殺額）を登録",null,null,null,null,null,null,"N+2月","初旬","NTTPC","N+1月利用分請求〆、対象SIMの調整金（相殺額）を登録"]
[null,null,null,null,null,"中旬","NTTPC","お客さまへN+1月利用分を請求（請求項目は下記）",null,null,null,null,null,null,null,"中旬","NTTPC","お客さまへN+1月利用分を請求（請求項目は下記）"]
[null,null,null,null,null,null,null,"　・マルチキャリアタイプ従量プラン月額料金 N+1月分",null,null,null,null,null,null,null,null,null,"　・マルチキャリアタイプ従量プラン月額料金 N+1月分"]
[null,null,null,null,null,null,null,"　・調整金 ※10",null,null,null,null,null,null,null,null,null,"　・調整金 ※13"]
[null,null,null,null,null,"c日 ※1","お客さま","カスタマコンソールで対象SIMを解約",null,null,null,"※11",null,null,null,"c日 ※1","お客さま","カスタマコンソールで対象SIMを解約",null,null,null,"※11"]
[null,null,null,null,"N+3月","初旬","NTTPC","N+2月利用分請求〆",null,null,null,null,null,null,"N+3月","初旬","NTTPC","N+2月利用分請求〆"]
[null,null,null,null,null,"中旬","NTTPC","お客さまへN+2月利用分を請求（請求項目は下記）",null,null,null,null,null,null,null,"中旬","NTTPC","お客さまへN+2月利用分を請求（請求項目は下記）"]
[null,null,null,null,null,null,null,"　・マルチキャリアタイプ従量プラン月額料金 N+2月分",null,null,null,null,"※12",null,null,null,null,"　・マルチキャリアタイプ従量プラン月額料金 N+2月分",null,null,null,null,"※12"]
[]
[null,null,null,null,"※10：[事務手数料]＋[SIM発行手数料]＋[マルチキャリアタイプ従量プラン月額料金 N月分]＋[マルチキャリアタイプ従量プラン月額料金 N+1月分] の合計マイナス値"]
[null,null,null,null,"※11：NTTPC社故障判定通知の翌月、かつ調整金で相殺後に対象SIMを解約"]
[null,null,null,null,"※12：N+2月に解約をしているので、「マルチキャリアタイプ従量プラン月額料金 N+2月分」は請求されてしまう"]
[null,null,null,null,"※13：[事務手数料]＋[SIM発行手数料]＋[マルチキャリアタイプ従量プラン月額料金 N+1月分] の合計マイナス値"]
[null,null,"--- 別紙1ここまで ---"]

{"sheet":"パラメーターシート","index":9,"n_rows":0,"n_cols":0,"rows_kept":0,"cut":false,"hidden":false,"merged":[]}

{"sheet":"通信機器売買契約条項","index":10,"n_rows":88,"n_cols":2,"rows_kept":88,"cut":false,"hidden":true,"merged":[[35,12,35,14],[35,15,35,17],[35,18,35,21],[35,22,35,25]]}
[]
[null,"InfoSphereモバイルスタンダードタイプ 通信機器売買契約条項"]
[]
[null,"本サービスは、株式会社エヌ・ティ・ティピー・シーコミュニケーションズ（以下、「当社」"]
[null,"といいます。）が当社のInfoSphereモバイルスタンダードタイプ 利用規約（以下、"]
[null,"「利用規約」といいます。）に規定しているサービス（以下「対象サービス」といいます。）"]
[null,"の契約者に対し、対象サービスで利用できる通信機器（以下、「対象機器」といいます。）"]
[null,"を販売します。"]
[]
[null,"第 1  条 （対象機器の購入にあたって）"]
[null,"対象サービスのお申込をされる方で、対象機器の購入を希望される方（以下、「利用者」と"]
[null,"いいます。）は、本条項を必ずお読みのうえ、対象機器の購入をお申込みいただきます。"]
[]
[null,"第 2  条 （対象機器の購入契約の成立）"]
[null,"1. 利用者は、対象機器の購入を希望する場合、当社指定の方法に従って 対象機器の購入申"]
[null,"込を行うものとします。"]
[null,"2. 利用者と当社との間の 対象機器に関する売買契約（以下「売買契約」という）は、前項"]
[null,"に基づく購入申込を当社が受け付け、これを承諾した時点で成立するものとします。かか"]
[null,"る承諾は、当社所定の方法で利用者へ通知することにより行われます。"]
[null,"3. 対象機器について当社が購入数量等を制限している場合、利用者は、その数量の範囲内"]
[null,"で購入申込を行うことができるものとします。"]
[]
[null,"第 3  条 （申込の拒絶）"]
[null,"1. 当社は、利用者が次の各号のいずれかに該当する場合、対象機器の購入申込を承諾しな"]
[null,"い場合があります。"]
[null,"(1) 申込情報に虚偽の情報があった場合"]
[null,"(2) 料金の滞納等がある場合"]
[null,"(3) 日本国外からの申込又は配送先が日本国外の場合"]
[null,"(4) 当社が購入数量等を制限している場合にその制限を超えた場合"]
[null,"(5)その他当社が申込を承諾することにつき不適当と判断した場合"]
[]
[null,"第 4  条 （代金及び支払方法）"]
[null,"1. 対象機器の販売代金（以下「端末代金」という）、その他付帯費用は別途当社が提示する"]
[null,"見積書によるものとします。"]
[null,"2. 利用者は、利用規約にて定める支払条件に従い、端末代金、その他付帯費用を支払うも"]
[null,"のとします。"]
[]
[null,"第 5  条 （配送)"]
[null,"1. 当社は、対象機器を当社の指定する配送業者により配送するものとします。"]
[null,"2. 当社は、売買契約締結後、利用者が当社へ通知した住所へ 対象機器を配送するものとし"]
[null,"ます。なお、対象機器の発送の時期については、利用者の対象サービス利用開始日が確定"]
[null,"した後となります。また、かかる配送の完了をもって、当社の売り主としての引き渡し義"]
[null,"務が履行されたものとします。"]
[null,"3. 対象機器の所有権は、利用者が当社へ端末代金の支払を完了した時点で、利用者へ移転"]
[null,"するものとします。"]
[]
[null,"第 6  条 （初期不良及び返品）"]
[null,"1. 利用者の購入した対象機器について、配送当初から正常に動作しない状態である場合に"]
[null,"は、利用者は当社に対し 対象機器配送完了日から 7 日以内に通知するものとします。こ"]
[null,"の場合、当社は、初期不良として同一機種の良品に交換するものとします。なお、この交"]
[null,"換は初期不良の対象機器が当社に返却され次第、行われるものとします。"]
[null,"2. 前項の初期不良が商品手配違い、設定誤り等当社の責めに帰すべき事由による場合には、"]
[null,"InfoSphereモバイルスタンダードタイプ サービスの停止とみなし、利用規約に基づき損害"]
[null,"を賠償するものとします。"]
[null,"3. 利用者は、本条第 1 項の通知期限経過後その他本規約に定める場合以外の対象機器の保"]
[null,"証については、対象機器の製造事業者（以下「機器製造事業者」といいます。）の定める保"]
[null,"証規定に従うものとします。なお、機器製造事業者の保証規定に基づく当該対象機器の保"]
[null,"証について、当社は一切責任を負いません。"]
[null,"4. 対象機器について、利用者の責めに帰すべき事由に基づく場合又は以下の各号に基づく"]
[null,"場合、本条第 1 項に定める初期不良には該当しないものとします。"]
[null,"(1) 火災、地震、水害、落雷、ガス害、塩害、その他の天災地変、公害、又は異常電圧等の"]
[null,"不慮の事故による場合"]
[null,"(2) 接続時の不備に起因する場合、又は接続している他の機器に起因する場合"]
[null,"(3) 取扱説明書又は製品仕様書の記載事項に反する使用及び保管による場合"]
[null,"(4) 利用者が改造、調整、部品交換等を行った場合"]
[null,"(5) その他、対象機器引き渡し後の輸送、移動時の落下・衝撃など不適当な取扱いによる場"]
[null,"合"]
[]
[null,"第 7  条 （契約解除）"]
[null,"1. 当社は、以下の各号のいずれかに該当する場合、利用者との売買契約を解除することが"]
[null,"できるものとします。この場合において、利用者に帰責事由がある場合、当社は利用者に"]
[null,"対して当社が被った損害の賠償を求めることができるものとします。"]
[null,"(1) 利用者が本規約等に違反した場合"]
[null,"(2) 当社に通知した住所に 対象機器を配送したにもかかわらず、利用者の不在等により 対"]
[null,"象機器の引き渡しができず、かつ 対象機器の発送のときから一定期間が経過してもなお当"]
[null,"該利用者から何らの連絡も無い場合"]
[null,"2. 前項の解除事由に該当する場合において、利用者に 対象機器の引き渡しが完了している"]
[null,"とき、当社は、当該 対象機器の返還を利用者に要求することができるものとします。利用"]
[null,"者は、当社が返還を要求した場合、利用者の費用負担においてかかる対象機器を当社所定"]
[null,"の方法により直ちに返還しなければならないものとします。"]
[]
[null,"第 8  条 （免責）"]
[null,"1. 当社は、対象機器の商品性又は利用者の使用目的への適合性等に関していかなる保証も"]
[null,"行わないものとします。"]
[null,"2. 当社は、利用者による 対象機器の使用その他本サービスによる売買契約に関して利用者"]
[null,"に生じた特別損害、拡大損害に関しては責任を負いません。また、当社が利用者による対"]
[null,"象機器の使用その他本サービスによる売買契約に関して責任を負う範囲は、いかなる場合"]
[null,"においても利用者の購入した 対象機器の端末代金相当額をその上限とします。"]

{"sheet":"Validation","index":11,"n_rows":65,"n_cols":8,"rows_kept":65,"cut":false,"hidden":true,"merged":[]}
["〇バリデーション"]
["大項番","シート名","中項番","入力項目","小項番","バリデーション内容","警告表示","備考"]
[1,"初期設定・企業識別子追加",1,"お申込日",1,"未記入がある","記入してください"]
[null,null,null,null,2,"半角数字以外がある","半角数字で記入してください"]
[null,null,null,null,3,"西暦が4桁でない","西暦は4桁で記入してください"]
[null,null,null,null,4,"正しい日付ではない","正しい日付を記入してください"]
[null,null,2,"システム番号",1,"未記入／未選択がある","記入してください"]
[null,null,null,null,2,"半角数字1文字以外がある","半角数字１桁ずつ記入してください"]
[null,null,3,"申込区分",1,"未選択または複数選択がある","どちらか１つを選択してください"]
[null,null,4,"カスタマーコンソール利用管理者ご利用有無",1,"未選択または複数選択がある","どちらか１つを選択してください"]
[null,null,5,"IDタイプ",1,"未選択または複数選択がある","どちらか１つを選択してください"]
[null,null,6,"会社名",1,"未記入","記入してください"]
[null,null,null,null,2,"全角1～40文字以内でない","全角40文字以内で記入してください"]
[null,null,7,"担当者名",1,"未記入","記入してください"]
[null,null,null,null,2,"全角1～50文字以内でない","全角50文字以内で記入してください"]
[null,null,8,"電話番号",1,"未記入","記入してください"]
[null,null,null,null,2,"半角以外がある","半角で記入してください"]
[null,null,null,null,3,"電話番号形式でない","電話番号の形式で記入してください","0X-X-Xは12桁か13桁、0XXXは10桁か11桁"]
[null,null,9,"メールアドレス",1,"未記入","記入してください"]
[null,null,null,null,2,"半角以外がある","メールアドレスの形式で記入してください"]
[null,null,null,null,3,"メールアドレス形式でない","メールアドレスの形式で記入してください","X@X.X"]
[null,null,null,null,4,"半角128文字以内でない","メールアドレスの形式で記入してください"]
[null,null,10,"システム名",1,"未記入","記入してください"]
[null,null,null,null,2,"全角1～32文字以内でない","全角50文字以内で記入してください"]
[null,null,11,"企業識別子",1,"未記入","記入してください"]
[null,null,null,null,2,"半角2～13文字以内でない","企業識別子の形式で記入してください"]
[null,null,null,null,3,"文字種が「a-zA-Z0-9-_」以外がある","企業識別子の形式で記入してください"]
[null,null,null,null,4,"文字種が「0-9-_」のみ","企業識別子の形式で記入してください"]
[null,null,12,"設定完了希望日",1,"未記入がある","記入してください"]
[null,null,null,null,2,"半角数字以外がある","半角数字で記入してください"]
[null,null,null,null,3,"西暦が4桁でない","西暦は4桁で記入してください"]
[null,null,null,null,4,"正しい日付ではない","正しい日付を記入してください"]
[null,null,13,"設定完了通知先",1,"未選択または複数選択がある","どちらか１つを選択してください"]
[null,null,null,null,2,"「通知する（その他）」でメールアドレスが未記入","記入してください"]
[null,null,null,null,3,"「通知する（その他）」でメールアドレス形式でない","メールアドレスの形式で記入してください","X@X.X"]
[null,null,null,null,4,"「通知する（その他）」でメールアドレスが半角128文字以内でない","メールアドレスの形式で記入してください"]
[null,null,14,"端末IPアドレス帯",1,"未選択または複数選択がある","どちらか１つを選択してください"]
[null,null,15,"ご利用端末数",1,"未選択","記入してください"]
[null,null,16,"折り返し通信禁止",1,"未選択または複数選択がある","どちらか１つを選択してください"]
[null,null,17,"NAT機能",1,"未選択または複数選択がある","どちらか１つを選択してください"]
[null,null,null,null,2,"「利用する」でNAT後アドレス、NAT後マスク、試験用アドレスが未記入","記入してください"]
[null,null,null,null,3,"「利用する」でNAT後アドレス、試験用アドレスがIPv4アドレス形式でない","IPアドレスの形式で記入してください"]
[null,null,null,null,4,"「利用する」でNAT後マスクが24～29でない","マスクの形式で記入してください"]
[null,null,null,null,5,"「利用する」でNAT後マスクがご利用端末数と同じではない","NAT後アドレス帯と端末台数の数は同じにしてください"]
[null,null,null,null,6,"「利用する」でNAT後アドレスがネットワークアドレスではない","IPアドレス帯はネットワークアドレスの形式で記入してください"]
[null,null,null,null,7,"「利用する」で試験用アドレスがNAT後アドレスレンジ内ではない","試験用アドレスはX.X.X.Xを記入してください","というか末尾の1つ手前じゃないとダメ"]
[null,null,18,"DNSアドレス付与",1,"未選択または複数選択がある","どちらか１つを選択してください"]
[null,null,null,null,2,"「利用する」でプライマリ、セカンダリが未記入","記入してください"]
[null,null,null,null,3,"「利用する」でプライマリ、セカンダリがIPv4アドレス形式ではない","IPアドレスの形式で記入してください"]
[null,null,19,"カスタマーコンソール利用管理者",1,"未記入がある","記入してください","新規かつカスコン未利用の場合"]
[null,null,null,null,2,"IDが8文字以上、100文字以内ではない","IDの形式で記入してください"]
[null,null,null,null,3,"IDがメールアドレス形式（a@a.a）ではない","IDの形式で記入してください"]
[null,null,null,null,4,"IDの文字種が「a-zA-Z0-9-_.」 or 「@」ではない","IDの形式で記入してください"]
[null,null,null,null,5,"パスワードが8文字以上、50文字以内ではない","パスワードの形式で記入してください"]
[null,null,null,null,6,"パスワードの文字種が「a-zA-Z0-9!#$(),-./:=@[]^_`{}~」ではない","パスワードの形式で記入してください"]
[null,null,20,"海外利用時における規制について",1,"未チェックがある","すべての内容に承諾された上でお申し込みください"]
[null,null,21,"契約期間",1,"未記入","注意書きを赤字にする"]
[null,null,22,"見積番号/契約番号",1,"未記入","注意書きを赤字にする"]
[null,null,null,null,2,"パスワードの文字種が「a-zA-Z0-9@.-_#:」ではない","注意書きを赤字、セルを赤にする"]
[null,null,23,"料金表確認",1,"未選択","注意書きを赤字にする"]
[null,null,24,"請求先管理番号",1,"8桁ではない","注意書きを赤字にする"]
[null,null,null,null,2,"7で始まってない","注意書きを赤字にする"]
[null,null,null,null,3,"文字種が「0-9」ではない","注意書きを赤字にする"]
[2,"マルチキャリアタイプ料金表",1,"金額(税抜)",1,"未記入","記入してください"]
[null,null,null,null,2,"「.」または半角数字以外がある","半角数字以外は入力できません"]